Department family,Entity,Date,Expense Type,Expense area,Supplier,Transaction number,AP Amount (�)
Department of Health,NHS Sheffield CCG,31/01/2018,C&M-PMS Contract Value,PRC DELEGATED CO-COMMISSIONING,ABBEY LANE SURGERY,20369392,"22,188.36 "
Department of Health,NHS Sheffield CCG,31/01/2018,C&M-PMS DES Extended Hours Access,PRC DELEGATED CO-COMMISSIONING,ABBEY LANE SURGERY,20369392,"1,480.58 "
Department of Health,NHS Sheffield CCG,31/01/2018,C&M-PMS Funding Differential Review,PRC DELEGATED CO-COMMISSIONING,ABBEY LANE SURGERY,20369392,"1,105.08 "
Department of Health,NHS Sheffield CCG,31/01/2018,C&M-PMS Out of Hours Opt Outs,PRC DELEGATED CO-COMMISSIONING,ABBEY LANE SURGERY,20369392,9.38 
Department of Health,NHS Sheffield CCG,31/01/2018,C&M-PMS PCO Other,PRC DELEGATED CO-COMMISSIONING,ABBEY LANE SURGERY,20369392,384.50 
Department of Health,NHS Sheffield CCG,31/01/2018,C&M-PMS Prem Notional Rent,PRC DELEGATED CO-COMMISSIONING,ABBEY LANE SURGERY,20369392,"2,122.92 "
Department of Health,NHS Sheffield CCG,31/01/2018,C&M-PMS Prem Rates,PRC DELEGATED CO-COMMISSIONING,ABBEY LANE SURGERY,20369392,700.00 
Department of Health,NHS Sheffield CCG,31/01/2018,C&M-PMS QOF Aspiration,PRC DELEGATED CO-COMMISSIONING,ABBEY LANE SURGERY,20369392,"3,210.12 "
Department of Health,NHS Sheffield CCG,31/01/2018,Cont Care-Physical Disab (65+),CHC ADULT FULLY FUNDED,ABBEYCARE NURSING,20333672,"49,782.90 "
Department of Health,NHS Sheffield CCG,31/01/2018,Cont Care-Physical Disab (65+),CHC ADULT FULLY FUNDED,ABBEYCARE NURSING,20544489,"44,965.20 "
Department of Health,NHS Sheffield CCG,31/01/2018,C&M-PMS Contract Value,PRC DELEGATED CO-COMMISSIONING,AVENUE MEDICAL CENTRE SHEFFIELD,20369390,"53,143.93 "
Department of Health,NHS Sheffield CCG,31/01/2018,C&M-PMS DES Extended Hours Access,PRC DELEGATED CO-COMMISSIONING,AVENUE MEDICAL CENTRE SHEFFIELD,20369390,"3,516.90 "
Department of Health,NHS Sheffield CCG,31/01/2018,C&M-PMS Out of Hours Opt Outs,PRC DELEGATED CO-COMMISSIONING,AVENUE MEDICAL CENTRE SHEFFIELD,20369390,41.18 
Department of Health,NHS Sheffield CCG,31/01/2018,C&M-PMS PCO Other,PRC DELEGATED CO-COMMISSIONING,AVENUE MEDICAL CENTRE SHEFFIELD,20369390,452.60 
Department of Health,NHS Sheffield CCG,31/01/2018,C&M-PMS Prem Notional Rent,PRC DELEGATED CO-COMMISSIONING,AVENUE MEDICAL CENTRE SHEFFIELD,20369390,"5,546.67 "
Department of Health,NHS Sheffield CCG,31/01/2018,C&M-PMS Prem Rates,PRC DELEGATED CO-COMMISSIONING,AVENUE MEDICAL CENTRE SHEFFIELD,20369390,875.00 
Department of Health,NHS Sheffield CCG,31/01/2018,C&M-PMS QOF Aspiration,PRC DELEGATED CO-COMMISSIONING,AVENUE MEDICAL CENTRE SHEFFIELD,20369390,"6,441.78 "
Department of Health,NHS Sheffield CCG,31/01/2018,Cont Care-Mental Health (65+),CHC ADULT FULLY FUNDED,BARCHESTER HEALTHCARE LTD,20702796,"69,428.57 "
Department of Health,NHS Sheffield CCG,31/01/2018,Hcare Srv Rec Fdtn Trust-Contract Baseline,ACUTE COMMISSIONING,BARNSLEY HOSPITAL NHS FOUNDATION TRUST,20303260,"72,098.00 "
Department of Health,NHS Sheffield CCG,31/01/2018,Clinical&Medical-Serv Recd-F Trsts,CLINICAL LEADS,BARNSLEY HOSPITAL NHS FOUNDATION TRUST,20383689,"33,400.00 "
Department of Health,NHS Sheffield CCG,31/01/2018,Hlthcre-Foundation Trsts,CLINICAL LEADS,BARNSLEY HOSPITAL NHS FOUNDATION TRUST,20596725,"300,000.00 "
Department of Health,NHS Sheffield CCG,31/01/2018,C&M-PMS Contract Value,PRC DELEGATED CO-COMMISSIONING,BARNSLEY ROAD SURGERY,20369394,"21,360.14 "
Department of Health,NHS Sheffield CCG,31/01/2018,C&M-PMS DES Extended Hours Access,PRC DELEGATED CO-COMMISSIONING,BARNSLEY ROAD SURGERY,20369394,"1,272.05 "
Department of Health,NHS Sheffield CCG,31/01/2018,C&M-PMS Funding Differential Review,PRC DELEGATED CO-COMMISSIONING,BARNSLEY ROAD SURGERY,20369394,370.25 
Department of Health,NHS Sheffield CCG,31/01/2018,C&M-PMS PCO Other,PRC DELEGATED CO-COMMISSIONING,BARNSLEY ROAD SURGERY,20369394,384.50 
Department of Health,NHS Sheffield CCG,31/01/2018,C&M-PMS Prem Notional Rent,PRC DELEGATED CO-COMMISSIONING,BARNSLEY ROAD SURGERY,20369394,"2,652.17 "
Department of Health,NHS Sheffield CCG,31/01/2018,C&M-PMS Prem Rates,PRC DELEGATED CO-COMMISSIONING,BARNSLEY ROAD SURGERY,20369394,629.00 
Department of Health,NHS Sheffield CCG,31/01/2018,C&M-PMS QOF Aspiration,PRC DELEGATED CO-COMMISSIONING,BARNSLEY ROAD SURGERY,20369394,"2,500.90 "
Department of Health,NHS Sheffield CCG,31/01/2018,C&M-GMS Cost of Drugs -Prescribing,LOCAL ENHANCED SERVICES,BASLOW ROAD & SHOREHAM STREET SURGERIES,20626087,"5,943.22 "
Department of Health,NHS Sheffield CCG,31/01/2018,C&M-GMS Global Sum,PRC DELEGATED CO-COMMISSIONING,BASLOW ROAD & SHOREHAM STREET SURGERIES,20626087,"93,629.97 "
Department of Health,NHS Sheffield CCG,31/01/2018,C&M-GMS MPIG Correction Factor,PRC DELEGATED CO-COMMISSIONING,BASLOW ROAD & SHOREHAM STREET SURGERIES,20626087,438.64 
Department of Health,NHS Sheffield CCG,31/01/2018,C&M-GMS Prem Notional Rent,PRC DELEGATED CO-COMMISSIONING,BASLOW ROAD & SHOREHAM STREET SURGERIES,20626087,"8,511.25 "
Department of Health,NHS Sheffield CCG,31/01/2018,C&M-GMS Prem Rates,PRC DELEGATED CO-COMMISSIONING,BASLOW ROAD & SHOREHAM STREET SURGERIES,20626087,"2,062.00 "
Department of Health,NHS Sheffield CCG,31/01/2018,C&M-GMS Prem Water Rates,PRC DELEGATED CO-COMMISSIONING,BASLOW ROAD & SHOREHAM STREET SURGERIES,20626087,357.10 
Department of Health,NHS Sheffield CCG,31/01/2018,C&M-GMS Prof Fees Prescribing,PRC DELEGATED CO-COMMISSIONING,BASLOW ROAD & SHOREHAM STREET SURGERIES,20626087,"1,624.10 "
Department of Health,NHS Sheffield CCG,31/01/2018,C&M-GMS QOF Aspiration,PRC DELEGATED CO-COMMISSIONING,BASLOW ROAD & SHOREHAM STREET SURGERIES,20626087,"10,284.12 "
Department of Health,NHS Sheffield CCG,31/01/2018,Cont Care-Physical Disab (65+),CHC ADULT FULLY FUNDED,BC SHEFFIELD LTD,20333280,"35,793.31 "
Department of Health,NHS Sheffield CCG,31/01/2018,C&M-PMS Contract Value,PRC DELEGATED CO-COMMISSIONING,BIRLEY HEALTH CENTRE,20369396,"61,372.21 "
Department of Health,NHS Sheffield CCG,31/01/2018,C&M-PMS DES Extended Hours Access,PRC DELEGATED CO-COMMISSIONING,BIRLEY HEALTH CENTRE,20369396,"4,019.45 "
Department of Health,NHS Sheffield CCG,31/01/2018,C&M-PMS Funding Differential Review,PRC DELEGATED CO-COMMISSIONING,BIRLEY HEALTH CENTRE,20369396,"2,653.00 "
Department of Health,NHS Sheffield CCG,31/01/2018,C&M-PMS PCO Other,PRC DELEGATED CO-COMMISSIONING,BIRLEY HEALTH CENTRE,20369396,452.60 
Department of Health,NHS Sheffield CCG,31/01/2018,C&M-PMS Prem Notional Rent,PRC DELEGATED CO-COMMISSIONING,BIRLEY HEALTH CENTRE,20369396,"7,775.48 "
Department of Health,NHS Sheffield CCG,31/01/2018,C&M-PMS QOF Aspiration,PRC DELEGATED CO-COMMISSIONING,BIRLEY HEALTH CENTRE,20369396,"8,879.62 "
Department of Health,NHS Sheffield CCG,31/01/2018,Clinical&Medical-Independent Sector,ACUTE COMMISSIONING,BMI HEALTHCARE COLLECTIONS,20303228,"77,530.74 "
Department of Health,NHS Sheffield CCG,31/01/2018,C&M-GMS Cost of Drugs -Prescribing,LOCAL ENHANCED SERVICES,BROOMHILL SURGERY,20626094,"5,211.44 "
Department of Health,NHS Sheffield CCG,31/01/2018,C&M-GMS Global Sum,PRC DELEGATED CO-COMMISSIONING,BROOMHILL SURGERY,20626094,"60,733.57 "
Department of Health,NHS Sheffield CCG,31/01/2018,C&M-GMS MPIG Correction Factor,PRC DELEGATED CO-COMMISSIONING,BROOMHILL SURGERY,20626094,753.01 
Department of Health,NHS Sheffield CCG,31/01/2018,C&M-GMS PCO Locum Adop/Pat/Mat,PRC DELEGATED CO-COMMISSIONING,BROOMHILL SURGERY,20626094,"9,273.41 "
Department of Health,NHS Sheffield CCG,31/01/2018,C&M-GMS Prem Cost Rent,PRC DELEGATED CO-COMMISSIONING,BROOMHILL SURGERY,20626094,"3,380.00 "
Department of Health,NHS Sheffield CCG,31/01/2018,C&M-GMS Prem Notional Rent,PRC DELEGATED CO-COMMISSIONING,BROOMHILL SURGERY,20626094,"2,541.67 "
Department of Health,NHS Sheffield CCG,31/01/2018,C&M-GMS Prem Rates,PRC DELEGATED CO-COMMISSIONING,BROOMHILL SURGERY,20626094,"1,794.00 "
Department of Health,NHS Sheffield CCG,31/01/2018,C&M-GMS Prem Water Rates,PRC DELEGATED CO-COMMISSIONING,BROOMHILL SURGERY,20626094,"1,706.70 "
Department of Health,NHS Sheffield CCG,31/01/2018,C&M-GMS Prof Fees Prescribing,PRC DELEGATED CO-COMMISSIONING,BROOMHILL SURGERY,20626094,985.22 
Department of Health,NHS Sheffield CCG,31/01/2018,C&M-GMS QOF Aspiration,PRC DELEGATED CO-COMMISSIONING,BROOMHILL SURGERY,20626094,"6,516.86 "
Department of Health,NHS Sheffield CCG,31/01/2018,Legal / Prof Fees,CONTINUING HEALTHCARE ASSESSMENT & SUPPORT,BROWNE JACOBSON LLP,20289898,"26,775.65 "
Department of Health,NHS Sheffield CCG,31/01/2018,Legal / Prof Fees,CHC ADULT FULLY FUNDED,BROWNE JACOBSON LLP,20289898,"2,428.00 "
Department of Health,NHS Sheffield CCG,31/01/2018,Legal / Prof Fees,CONTINUING HEALTHCARE ASSESSMENT & SUPPORT,BROWNE JACOBSON LLP,20489197,"25,125.22 "
Department of Health,NHS Sheffield CCG,31/01/2018,C&M-GMS Cost of Drugs -Prescribing,LOCAL ENHANCED SERVICES,BUCHANAN ROAD SURGERY,20626090,92.95 
Department of Health,NHS Sheffield CCG,31/01/2018,C&M-GMS Global Sum,PRC DELEGATED CO-COMMISSIONING,BUCHANAN ROAD SURGERY,20626090,"34,478.60 "
Department of Health,NHS Sheffield CCG,31/01/2018,C&M-GMS MPIG Correction Factor,PRC DELEGATED CO-COMMISSIONING,BUCHANAN ROAD SURGERY,20626090,"1,965.76 "
Department of Health,NHS Sheffield CCG,31/01/2018,C&M-GMS Prem Notional Rent,PRC DELEGATED CO-COMMISSIONING,BUCHANAN ROAD SURGERY,20626090,"2,595.83 "
Department of Health,NHS Sheffield CCG,31/01/2018,C&M-GMS Prem Rates,PRC DELEGATED CO-COMMISSIONING,BUCHANAN ROAD SURGERY,20626090,839.00 
Department of Health,NHS Sheffield CCG,31/01/2018,C&M-GMS Prof Fees Prescribing,PRC DELEGATED CO-COMMISSIONING,BUCHANAN ROAD SURGERY,20626090,30.93 
Department of Health,NHS Sheffield CCG,31/01/2018,C&M-GMS QOF Aspiration,PRC DELEGATED CO-COMMISSIONING,BUCHANAN ROAD SURGERY,20626090,"4,538.47 "
Department of Health,NHS Sheffield CCG,31/01/2018,C&M-PMS Contract Value,PRC DELEGATED CO-COMMISSIONING,BURNCROSS SURGERY,20369398,"118,437.85 "
Department of Health,NHS Sheffield CCG,31/01/2018,C&M-PMS DES Extended Hours Access,PRC DELEGATED CO-COMMISSIONING,BURNCROSS SURGERY,20369398,"7,419.98 "
Department of Health,NHS Sheffield CCG,31/01/2018,C&M-PMS Funding Differential Review,PRC DELEGATED CO-COMMISSIONING,BURNCROSS SURGERY,20369398,"1,648.42 "
Department of Health,NHS Sheffield CCG,31/01/2018,C&M-PMS Prem Notional Rent,PRC DELEGATED CO-COMMISSIONING,BURNCROSS SURGERY,20369398,"14,058.33 "
Department of Health,NHS Sheffield CCG,31/01/2018,C&M-PMS Prem Rates,PRC DELEGATED CO-COMMISSIONING,BURNCROSS SURGERY,20369398,"2,376.30 "
Department of Health,NHS Sheffield CCG,31/01/2018,C&M-PMS QOF Aspiration,PRC DELEGATED CO-COMMISSIONING,BURNCROSS SURGERY,20369398,"14,930.79 "
Department of Health,NHS Sheffield CCG,31/01/2018,C&M-PMS Contract Value,PRC DELEGATED CO-COMMISSIONING,BURNGREAVE SURGERY,20369400,"54,107.28 "
Department of Health,NHS Sheffield CCG,31/01/2018,C&M-PMS DES Extended Hours Access,PRC DELEGATED CO-COMMISSIONING,BURNGREAVE SURGERY,20369400,"3,134.05 "
Department of Health,NHS Sheffield CCG,31/01/2018,C&M-PMS Funding Differential Review,PRC DELEGATED CO-COMMISSIONING,BURNGREAVE SURGERY,20369400,"1,353.08 "
Department of Health,NHS Sheffield CCG,31/01/2018,C&M-PMS Out of Hours Opt Outs,PRC DELEGATED CO-COMMISSIONING,BURNGREAVE SURGERY,20369400,6.13 
Department of Health,NHS Sheffield CCG,31/01/2018,C&M-PMS Prem Notional Rent,PRC DELEGATED CO-COMMISSIONING,BURNGREAVE SURGERY,20369400,"6,622.91 "
Department of Health,NHS Sheffield CCG,31/01/2018,C&M-PMS Prem Rates,PRC DELEGATED CO-COMMISSIONING,BURNGREAVE SURGERY,20369400,"1,877.00 "
Department of Health,NHS Sheffield CCG,31/01/2018,C&M-PMS Prem Water Rates,PRC DELEGATED CO-COMMISSIONING,BURNGREAVE SURGERY,20369400,407.61 
Department of Health,NHS Sheffield CCG,31/01/2018,C&M-PMS QOF Aspiration,PRC DELEGATED CO-COMMISSIONING,BURNGREAVE SURGERY,20369400,"5,148.30 "
Department of Health,NHS Sheffield CCG,31/01/2018,C&M-GMS Cost of Drugs -Prescribing,LOCAL ENHANCED SERVICES,CARTERKNOWLE & DORE MEDICAL PRACTICE,20650755,"5,478.35 "
Department of Health,NHS Sheffield CCG,31/01/2018,C&M-GMS DES Learn Dsblty Hlth Chk,PRC DELEGATED CO-COMMISSIONING,CARTERKNOWLE & DORE MEDICAL PRACTICE,20650755,420.00 
Department of Health,NHS Sheffield CCG,31/01/2018,C&M-GMS Global Sum,PRC DELEGATED CO-COMMISSIONING,CARTERKNOWLE & DORE MEDICAL PRACTICE,20650755,"79,320.00 "
Department of Health,NHS Sheffield CCG,31/01/2018,C&M-GMS MPIG Correction Factor,PRC DELEGATED CO-COMMISSIONING,CARTERKNOWLE & DORE MEDICAL PRACTICE,20650755,"2,241.88 "
Department of Health,NHS Sheffield CCG,31/01/2018,C&M-GMS PCO Other,PRC DELEGATED CO-COMMISSIONING,CARTERKNOWLE & DORE MEDICAL PRACTICE,20650755,"5,237.00 "
Department of Health,NHS Sheffield CCG,31/01/2018,C&M-GMS Prem Notional Rent,PRC DELEGATED CO-COMMISSIONING,CARTERKNOWLE & DORE MEDICAL PRACTICE,20650755,"7,538.34 "
Department of Health,NHS Sheffield CCG,31/01/2018,C&M-GMS Prem Rates,PRC DELEGATED CO-COMMISSIONING,CARTERKNOWLE & DORE MEDICAL PRACTICE,20650755,"17,970.88 "
Department of Health,NHS Sheffield CCG,31/01/2018,C&M-GMS Prof Fees Prescribing,PRC DELEGATED CO-COMMISSIONING,CARTERKNOWLE & DORE MEDICAL PRACTICE,20650755,"1,038.23 "
Department of Health,NHS Sheffield CCG,31/01/2018,C&M-GMS QOF Aspiration,PRC DELEGATED CO-COMMISSIONING,CARTERKNOWLE & DORE MEDICAL PRACTICE,20650755,"10,317.62 "
Department of Health,NHS Sheffield CCG,31/01/2018,Cont Care-Learning Disab(<65),CHC ADULT JOINT FUNDED,CAS LEARNING DISABILITIES MIDLANDS LTD,20333272,"25,200.00 "
Department of Health,NHS Sheffield CCG,31/01/2018,C&M-GMS Cost of Drugs -Prescribing,LOCAL ENHANCED SERVICES,CHARNOCK HEALTH PRIMARY CARE CENTRE,20626096,"3,895.83 "
Department of Health,NHS Sheffield CCG,31/01/2018,C&M-GMS DES Learn Dsblty Hlth Chk,PRC DELEGATED CO-COMMISSIONING,CHARNOCK HEALTH PRIMARY CARE CENTRE,20626096,280.00 
Department of Health,NHS Sheffield CCG,31/01/2018,C&M-GMS Global Sum,PRC DELEGATED CO-COMMISSIONING,CHARNOCK HEALTH PRIMARY CARE CENTRE,20626096,"39,009.79 "
Department of Health,NHS Sheffield CCG,31/01/2018,C&M-GMS MPIG Correction Factor,PRC DELEGATED CO-COMMISSIONING,CHARNOCK HEALTH PRIMARY CARE CENTRE,20626096,619.87 
Department of Health,NHS Sheffield CCG,31/01/2018,C&M-GMS PCO Other,PRC DELEGATED CO-COMMISSIONING,CHARNOCK HEALTH PRIMARY CARE CENTRE,20626096,452.60 
Department of Health,NHS Sheffield CCG,31/01/2018,C&M-GMS Prem Actual Rent,PRC DELEGATED CO-COMMISSIONING,CHARNOCK HEALTH PRIMARY CARE CENTRE,20626096,"18,300.00 "
Department of Health,NHS Sheffield CCG,31/01/2018,C&M-GMS Prem Notional Rent,PRC DELEGATED CO-COMMISSIONING,CHARNOCK HEALTH PRIMARY CARE CENTRE,20626096,305.00 
Department of Health,NHS Sheffield CCG,31/01/2018,C&M-GMS Prem Rates,PRC DELEGATED CO-COMMISSIONING,CHARNOCK HEALTH PRIMARY CARE CENTRE,20626096,"1,111.00 "
Department of Health,NHS Sheffield CCG,31/01/2018,C&M-GMS Prof Fees Prescribing,PRC DELEGATED CO-COMMISSIONING,CHARNOCK HEALTH PRIMARY CARE CENTRE,20626096,426.34 
Department of Health,NHS Sheffield CCG,31/01/2018,C&M-GMS QOF Aspiration,PRC DELEGATED CO-COMMISSIONING,CHARNOCK HEALTH PRIMARY CARE CENTRE,20626096,"4,669.55 "
Department of Health,NHS Sheffield CCG,31/01/2018,Hcare Srv Rec Fdtn Trust-Contract Baseline,ACUTE COMMISSIONING,CHESTERFIELD ROYAL HOSPITAL NHS FOUNDATION TRUST,20383663,"273,318.00 "
Department of Health,NHS Sheffield CCG,31/01/2018,Hcare Srv Rec Fdtn Trust-Contract Baseline,ACUTE COMMISSIONING,CHESTERFIELD ROYAL HOSPITAL NHS FOUNDATION TRUST,20426189,"273,318.00 "
Department of Health,NHS Sheffield CCG,31/01/2018,Hlthcre-Foundation Trsts,CLINICAL LEADS,CHESTERFIELD ROYAL HOSPITAL NHS FOUNDATION TRUST,20596728,"82,357.00 "
Department of Health,NHS Sheffield CCG,31/01/2018,Clinical&Medical-Independent Sector,ACUTE COMMISSIONING,CLAREMONT HOSPITAL,20383715,"78,290.00 "
Department of Health,NHS Sheffield CCG,31/01/2018,Clinical&Medical-Independent Sector,ACUTE COMMISSIONING,CLAREMONT HOSPITAL,20489202,"(44,603.00)"
Department of Health,NHS Sheffield CCG,31/01/2018,Voids and Subsidies,PRC DELEGATED CO-COMMISSIONING,COMMUNITY HEALTH PARTNERSHIPS LTD,20290045,"13,201.32 "
Department of Health,NHS Sheffield CCG,31/01/2018,Voids and Subsidies,RECHARGES NHS PROPERTY SERVICES LTD,COMMUNITY HEALTH PARTNERSHIPS LTD,20290045,"114,122.91 "
Department of Health,NHS Sheffield CCG,31/01/2018,Cont Care-Funded Nursing Care Allow,FUNDED NURSING CARE,COUNTRY COURT CARE LTD,20439956,"33,800.90 "
Department of Health,NHS Sheffield CCG,31/01/2018,C&M-GMS Cost of Drugs -Prescribing,LOCAL ENHANCED SERVICES,CROOKES PRACTICE,20626102,"3,679.49 "
Department of Health,NHS Sheffield CCG,31/01/2018,C&M-GMS Global Sum,PRC DELEGATED CO-COMMISSIONING,CROOKES PRACTICE,20626102,"47,331.53 "
Department of Health,NHS Sheffield CCG,31/01/2018,C&M-GMS MPIG Correction Factor,PRC DELEGATED CO-COMMISSIONING,CROOKES PRACTICE,20626102,"2,318.88 "
Department of Health,NHS Sheffield CCG,31/01/2018,C&M-GMS PCO Other,PRC DELEGATED CO-COMMISSIONING,CROOKES PRACTICE,20626102,452.60 
Department of Health,NHS Sheffield CCG,31/01/2018,C&M-GMS Prem Notional Rent,PRC DELEGATED CO-COMMISSIONING,CROOKES PRACTICE,20626102,"3,752.42 "
Department of Health,NHS Sheffield CCG,31/01/2018,C&M-GMS Prem Rates,PRC DELEGATED CO-COMMISSIONING,CROOKES PRACTICE,20626102,"1,444.00 "
Department of Health,NHS Sheffield CCG,31/01/2018,C&M-GMS Prof Fees Prescribing,PRC DELEGATED CO-COMMISSIONING,CROOKES PRACTICE,20626102,870.36 
Department of Health,NHS Sheffield CCG,31/01/2018,C&M-GMS QOF Aspiration,PRC DELEGATED CO-COMMISSIONING,CROOKES PRACTICE,20626102,"4,702.76 "
Department of Health,NHS Sheffield CCG,31/01/2018,Cont Care-Funded Nursing Care Allow,FUNDED NURSING CARE,DARNALL GRANGE NURSING HOME,20439953,"29,021.81 "
Department of Health,NHS Sheffield CCG,31/01/2018,C&M-PMS Contract Value,PRC DELEGATED CO-COMMISSIONING,DEEPCAR MEDICAL CENTRE,20369404,"39,010.85 "
Department of Health,NHS Sheffield CCG,31/01/2018,C&M-PMS DES Extended Hours Access,PRC DELEGATED CO-COMMISSIONING,DEEPCAR MEDICAL CENTRE,20369404,"2,444.35 "
Department of Health,NHS Sheffield CCG,31/01/2018,C&M-PMS DES Learn Dsblty Hlth Chk,PRC DELEGATED CO-COMMISSIONING,DEEPCAR MEDICAL CENTRE,20369404,"1,680.00 "
Department of Health,NHS Sheffield CCG,31/01/2018,C&M-PMS Funding Differential Review,PRC DELEGATED CO-COMMISSIONING,DEEPCAR MEDICAL CENTRE,20369404,306.08 
Department of Health,NHS Sheffield CCG,31/01/2018,C&M-PMS Prem Healthcentre Rent,PRC DELEGATED CO-COMMISSIONING,DEEPCAR MEDICAL CENTRE,20369404,"27,983.03 "
Department of Health,NHS Sheffield CCG,31/01/2018,C&M-PMS QOF Aspiration,PRC DELEGATED CO-COMMISSIONING,DEEPCAR MEDICAL CENTRE,20369404,"4,452.12 "
Department of Health,NHS Sheffield CCG,31/01/2018,C&M-GMS Cost of Drugs -Prescribing,LOCAL ENHANCED SERVICES,DEVONSHIRE GREEN MEDICAL CENTRE,20626107,"1,210.78 "
Department of Health,NHS Sheffield CCG,31/01/2018,C&M-GMS Global Sum,PRC DELEGATED CO-COMMISSIONING,DEVONSHIRE GREEN MEDICAL CENTRE,20626107,"42,892.02 "
Department of Health,NHS Sheffield CCG,31/01/2018,C&M-GMS MPIG Correction Factor,PRC DELEGATED CO-COMMISSIONING,DEVONSHIRE GREEN MEDICAL CENTRE,20626107,"4,846.80 "
Department of Health,NHS Sheffield CCG,31/01/2018,C&M-GMS Prem Notional Rent,PRC DELEGATED CO-COMMISSIONING,DEVONSHIRE GREEN MEDICAL CENTRE,20626107,"5,987.50 "
Department of Health,NHS Sheffield CCG,31/01/2018,C&M-GMS Prof Fees Prescribing,PRC DELEGATED CO-COMMISSIONING,DEVONSHIRE GREEN MEDICAL CENTRE,20626107,315.88 
Department of Health,NHS Sheffield CCG,31/01/2018,C&M-GMS QOF Aspiration,PRC DELEGATED CO-COMMISSIONING,DEVONSHIRE GREEN MEDICAL CENTRE,20626107,"5,205.83 "
Department of Health,NHS Sheffield CCG,31/01/2018,Hcare Srv Rec Fdtn Trust-Contract Baseline,ACUTE COMMISSIONING,DONCASTER AND BASSETLAW HOSPITALS NHS FOUNDATION TRUST,20312946,"34,390.00 "
Department of Health,NHS Sheffield CCG,31/01/2018,Hcare Srv Rec Fdtn Trust-Contract Baseline,ACUTE COMMISSIONING,DONCASTER AND BASSETLAW HOSPITALS NHS FOUNDATION TRUST,20312968,"34,679.00 "
Department of Health,NHS Sheffield CCG,31/01/2018,Hlthcre-Foundation Trsts,CLINICAL LEADS,DONCASTER AND BASSETLAW HOSPITALS NHS FOUNDATION TRUST,20449077,"78,555.00 "
Department of Health,NHS Sheffield CCG,31/01/2018,C&M-PMS Contract Value,PRC DELEGATED CO-COMMISSIONING,DOVERCOURT SURGERY,20397766,"68,639.95 "
Department of Health,NHS Sheffield CCG,31/01/2018,C&M-PMS DES Extended Hours Access,PRC DELEGATED CO-COMMISSIONING,DOVERCOURT SURGERY,20397766,"3,876.95 "
Department of Health,NHS Sheffield CCG,31/01/2018,C&M-PMS DES Learn Dsblty Hlth Chk,PRC DELEGATED CO-COMMISSIONING,DOVERCOURT SURGERY,20397766,"2,100.00 "
Department of Health,NHS Sheffield CCG,31/01/2018,C&M-PMS Funding Differential Review,PRC DELEGATED CO-COMMISSIONING,DOVERCOURT SURGERY,20397766,"3,616.08 "
Department of Health,NHS Sheffield CCG,31/01/2018,C&M-PMS Prem Actual Rent,PRC DELEGATED CO-COMMISSIONING,DOVERCOURT SURGERY,20397766,"12,400.00 "
Department of Health,NHS Sheffield CCG,31/01/2018,C&M-PMS Prem Notional Rent,PRC DELEGATED CO-COMMISSIONING,DOVERCOURT SURGERY,20397766,"1,708.34 "
Department of Health,NHS Sheffield CCG,31/01/2018,C&M-PMS QOF Aspiration,PRC DELEGATED CO-COMMISSIONING,DOVERCOURT SURGERY,20397766,"7,505.03 "
Department of Health,NHS Sheffield CCG,31/01/2018,C&M-PMS Contract Value,PRC DELEGATED CO-COMMISSIONING,DR MEHROTRA & PARTNER,20369407,"27,162.37 "
Department of Health,NHS Sheffield CCG,31/01/2018,C&M-PMS DES Extended Hours Access,PRC DELEGATED CO-COMMISSIONING,DR MEHROTRA & PARTNER,20369407,"1,620.23 "
Department of Health,NHS Sheffield CCG,31/01/2018,C&M-PMS Funding Differential Review,PRC DELEGATED CO-COMMISSIONING,DR MEHROTRA & PARTNER,20369407,885.92 
Department of Health,NHS Sheffield CCG,31/01/2018,C&M-PMS PCO Other,PRC DELEGATED CO-COMMISSIONING,DR MEHROTRA & PARTNER,20369407,384.50 
Department of Health,NHS Sheffield CCG,31/01/2018,C&M-PMS Prem Notional Rent,PRC DELEGATED CO-COMMISSIONING,DR MEHROTRA & PARTNER,20369407,"5,157.33 "
Department of Health,NHS Sheffield CCG,31/01/2018,C&M-PMS Prem Rates,PRC DELEGATED CO-COMMISSIONING,DR MEHROTRA & PARTNER,20369407,"1,322.00 "
Department of Health,NHS Sheffield CCG,31/01/2018,C&M-PMS Prem Water Rates,PRC DELEGATED CO-COMMISSIONING,DR MEHROTRA & PARTNER,20369407,229.09 
Department of Health,NHS Sheffield CCG,31/01/2018,C&M-PMS QOF Aspiration,PRC DELEGATED CO-COMMISSIONING,DR MEHROTRA & PARTNER,20369407,"3,389.93 "
Department of Health,NHS Sheffield CCG,31/01/2018,C&M-PMS Contract Value,PRC DELEGATED CO-COMMISSIONING,DR MILNER & PARTNERS,20369409,"72,194.42 "
Department of Health,NHS Sheffield CCG,31/01/2018,C&M-PMS DES Extended Hours Access,PRC DELEGATED CO-COMMISSIONING,DR MILNER & PARTNERS,20369409,"4,991.30 "
Department of Health,NHS Sheffield CCG,31/01/2018,C&M-PMS Funding Differential Review,PRC DELEGATED CO-COMMISSIONING,DR MILNER & PARTNERS,20369409,"4,581.42 "
Department of Health,NHS Sheffield CCG,31/01/2018,C&M-PMS PCO Locum Adop/Pat/Mat,PRC DELEGATED CO-COMMISSIONING,DR MILNER & PARTNERS,20369409,"7,802.31 "
Department of Health,NHS Sheffield CCG,31/01/2018,C&M-PMS Prem Actual Rent,PRC DELEGATED CO-COMMISSIONING,DR MILNER & PARTNERS,20369409,"11,382.00 "
Department of Health,NHS Sheffield CCG,31/01/2018,C&M-PMS Prem Notional Rent,PRC DELEGATED CO-COMMISSIONING,DR MILNER & PARTNERS,20369409,"4,462.41 "
Department of Health,NHS Sheffield CCG,31/01/2018,C&M-PMS Prem Rates,PRC DELEGATED CO-COMMISSIONING,DR MILNER & PARTNERS,20369409,"1,921.00 "
Department of Health,NHS Sheffield CCG,31/01/2018,C&M-PMS Prem Water Rates,PRC DELEGATED CO-COMMISSIONING,DR MILNER & PARTNERS,20369409,146.22 
Department of Health,NHS Sheffield CCG,31/01/2018,C&M-PMS QOF Aspiration,PRC DELEGATED CO-COMMISSIONING,DR MILNER & PARTNERS,20369409,"7,385.62 "
Department of Health,NHS Sheffield CCG,31/01/2018,C&M-GMS Cost of Drugs -Prescribing,LOCAL ENHANCED SERVICES,DUKE MEDICAL CENTRE,20626115,"1,570.28 "
Department of Health,NHS Sheffield CCG,31/01/2018,C&M-GMS Global Sum,PRC DELEGATED CO-COMMISSIONING,DUKE MEDICAL CENTRE,20626115,"54,227.95 "
Department of Health,NHS Sheffield CCG,31/01/2018,C&M-GMS MPIG Correction Factor,PRC DELEGATED CO-COMMISSIONING,DUKE MEDICAL CENTRE,20626115,918.76 
Department of Health,NHS Sheffield CCG,31/01/2018,C&M-GMS Prem Notional Rent,PRC DELEGATED CO-COMMISSIONING,DUKE MEDICAL CENTRE,20626115,"5,721.67 "
Department of Health,NHS Sheffield CCG,31/01/2018,C&M-GMS Prem Rates,PRC DELEGATED CO-COMMISSIONING,DUKE MEDICAL CENTRE,20626115,"9,580.48 "
Department of Health,NHS Sheffield CCG,31/01/2018,C&M-GMS Prem Water Rates,PRC DELEGATED CO-COMMISSIONING,DUKE MEDICAL CENTRE,20626115,49.87 
Department of Health,NHS Sheffield CCG,31/01/2018,C&M-GMS Prof Fees Prescribing,PRC DELEGATED CO-COMMISSIONING,DUKE MEDICAL CENTRE,20626115,439.59 
Department of Health,NHS Sheffield CCG,31/01/2018,C&M-GMS QOF Aspiration,PRC DELEGATED CO-COMMISSIONING,DUKE MEDICAL CENTRE,20626115,"5,346.37 "
Department of Health,NHS Sheffield CCG,31/01/2018,C&M-PMS Contract Value,PRC DELEGATED CO-COMMISSIONING,DUNNINC ROAD SURGERY,20369411,"23,292.54 "
Department of Health,NHS Sheffield CCG,31/01/2018,C&M-PMS DES Extended Hours Access,PRC DELEGATED CO-COMMISSIONING,DUNNINC ROAD SURGERY,20369411,"1,437.35 "
Department of Health,NHS Sheffield CCG,31/01/2018,C&M-PMS Funding Differential Review,PRC DELEGATED CO-COMMISSIONING,DUNNINC ROAD SURGERY,20369411,"1,218.67 "
Department of Health,NHS Sheffield CCG,31/01/2018,C&M-PMS Prem Actual Rent,PRC DELEGATED CO-COMMISSIONING,DUNNINC ROAD SURGERY,20369411,54.38 
Department of Health,NHS Sheffield CCG,31/01/2018,C&M-PMS Prem Notional Rent,PRC DELEGATED CO-COMMISSIONING,DUNNINC ROAD SURGERY,20369411,"1,664.59 "
Department of Health,NHS Sheffield CCG,31/01/2018,C&M-PMS QOF Aspiration,PRC DELEGATED CO-COMMISSIONING,DUNNINC ROAD SURGERY,20369411,"2,548.20 "
Department of Health,NHS Sheffield CCG,31/01/2018,C&M-PMS Contract Value,PRC DELEGATED CO-COMMISSIONING,DYKES HALL MEDICAL CENTRE,20369413,"70,491.01 "
Department of Health,NHS Sheffield CCG,31/01/2018,C&M-PMS DES Extended Hours Access,PRC DELEGATED CO-COMMISSIONING,DYKES HALL MEDICAL CENTRE,20369413,"4,609.40 "
Department of Health,NHS Sheffield CCG,31/01/2018,C&M-PMS Funding Differential Review,PRC DELEGATED CO-COMMISSIONING,DYKES HALL MEDICAL CENTRE,20369413,199.75 
Department of Health,NHS Sheffield CCG,31/01/2018,C&M-PMS PCO Doctors Ret Scheme,PRC DELEGATED CO-COMMISSIONING,DYKES HALL MEDICAL CENTRE,20369413,"1,336.95 "
Department of Health,NHS Sheffield CCG,31/01/2018,C&M-PMS Prem Notional Rent,PRC DELEGATED CO-COMMISSIONING,DYKES HALL MEDICAL CENTRE,20369413,"5,300.83 "
Department of Health,NHS Sheffield CCG,31/01/2018,C&M-PMS QOF Aspiration,PRC DELEGATED CO-COMMISSIONING,DYKES HALL MEDICAL CENTRE,20369413,"8,863.43 "
Department of Health,NHS Sheffield CCG,31/01/2018,C&M-PMS Contract Value,PRC DELEGATED CO-COMMISSIONING,EAST BANK MEDICAL CENTRE,20369415,"45,118.80 "
Department of Health,NHS Sheffield CCG,31/01/2018,C&M-PMS DES Extended Hours Access,PRC DELEGATED CO-COMMISSIONING,EAST BANK MEDICAL CENTRE,20369415,"2,649.08 "
Department of Health,NHS Sheffield CCG,31/01/2018,C&M-PMS Funding Differential Review,PRC DELEGATED CO-COMMISSIONING,EAST BANK MEDICAL CENTRE,20369415,"1,588.17 "
Department of Health,NHS Sheffield CCG,31/01/2018,C&M-PMS Out of Hours Opt Outs,PRC DELEGATED CO-COMMISSIONING,EAST BANK MEDICAL CENTRE,20369415,25.26 
Department of Health,NHS Sheffield CCG,31/01/2018,C&M-PMS Prem Notional Rent,PRC DELEGATED CO-COMMISSIONING,EAST BANK MEDICAL CENTRE,20369415,"10,466.67 "
Department of Health,NHS Sheffield CCG,31/01/2018,C&M-PMS Prem Rates,PRC DELEGATED CO-COMMISSIONING,EAST BANK MEDICAL CENTRE,20369415,"4,981.00 "
Department of Health,NHS Sheffield CCG,31/01/2018,C&M-PMS QOF Aspiration,PRC DELEGATED CO-COMMISSIONING,EAST BANK MEDICAL CENTRE,20369415,"5,086.87 "
Department of Health,NHS Sheffield CCG,31/01/2018,C&M-GMS Cost of Drugs -Prescribing,LOCAL ENHANCED SERVICES,ECCLESFIELD GROUP PRACTICE,20626111,"9,256.81 "
Department of Health,NHS Sheffield CCG,31/01/2018,C&M-GMS Global Sum,PRC DELEGATED CO-COMMISSIONING,ECCLESFIELD GROUP PRACTICE,20626111,"63,478.15 "
Department of Health,NHS Sheffield CCG,31/01/2018,C&M-GMS PCO Other,PRC DELEGATED CO-COMMISSIONING,ECCLESFIELD GROUP PRACTICE,20626111,452.60 
Department of Health,NHS Sheffield CCG,31/01/2018,C&M-GMS Prem Notional Rent,PRC DELEGATED CO-COMMISSIONING,ECCLESFIELD GROUP PRACTICE,20626111,"6,805.42 "
Department of Health,NHS Sheffield CCG,31/01/2018,C&M-GMS Prem Rates,PRC DELEGATED CO-COMMISSIONING,ECCLESFIELD GROUP PRACTICE,20626111,"2,055.00 "
Department of Health,NHS Sheffield CCG,31/01/2018,C&M-GMS Prof Fees Prescribing,PRC DELEGATED CO-COMMISSIONING,ECCLESFIELD GROUP PRACTICE,20626111,"2,476.30 "
Department of Health,NHS Sheffield CCG,31/01/2018,C&M-GMS QOF Aspiration,PRC DELEGATED CO-COMMISSIONING,ECCLESFIELD GROUP PRACTICE,20626111,"10,399.72 "
Department of Health,NHS Sheffield CCG,31/01/2018,C&M-GMS Cost of Drugs -Prescribing,LOCAL ENHANCED SERVICES,ELM LANE SURGERY,20626113,"2,886.72 "
Department of Health,NHS Sheffield CCG,31/01/2018,C&M-GMS Global Sum,PRC DELEGATED CO-COMMISSIONING,ELM LANE SURGERY,20626113,"38,022.53 "
Department of Health,NHS Sheffield CCG,31/01/2018,C&M-GMS MPIG Correction Factor,PRC DELEGATED CO-COMMISSIONING,ELM LANE SURGERY,20626113,"1,257.79 "
Department of Health,NHS Sheffield CCG,31/01/2018,C&M-GMS Prem Notional Rent,PRC DELEGATED CO-COMMISSIONING,ELM LANE SURGERY,20626113,"5,168.50 "
Department of Health,NHS Sheffield CCG,31/01/2018,C&M-GMS Prem Rates,PRC DELEGATED CO-COMMISSIONING,ELM LANE SURGERY,20626113,"1,268.00 "
Department of Health,NHS Sheffield CCG,31/01/2018,C&M-GMS Prem Water Rates,PRC DELEGATED CO-COMMISSIONING,ELM LANE SURGERY,20626113,160.67 
Department of Health,NHS Sheffield CCG,31/01/2018,C&M-GMS Prof Fees Prescribing,PRC DELEGATED CO-COMMISSIONING,ELM LANE SURGERY,20626113,404.25 
Department of Health,NHS Sheffield CCG,31/01/2018,C&M-GMS QOF Aspiration,PRC DELEGATED CO-COMMISSIONING,ELM LANE SURGERY,20626113,"4,880.72 "
Department of Health,NHS Sheffield CCG,31/01/2018,Cont Care-Physical Disab (<65),CHC ADULT FULLY FUNDED,FAIRWINDS HEALTH CARE LTD,20426147,"45,486.03 "
Department of Health,NHS Sheffield CCG,31/01/2018,C&M-PMS Contract Value,PRC DELEGATED CO-COMMISSIONING,FALKLAND HOUSE,20369419,"26,591.60 "
Department of Health,NHS Sheffield CCG,31/01/2018,C&M-PMS DES Extended Hours Access,PRC DELEGATED CO-COMMISSIONING,FALKLAND HOUSE,20369419,"1,903.80 "
Department of Health,NHS Sheffield CCG,31/01/2018,C&M-PMS Funding Differential Review,PRC DELEGATED CO-COMMISSIONING,FALKLAND HOUSE,20369419,"1,255.92 "
Department of Health,NHS Sheffield CCG,31/01/2018,C&M-PMS Out of Hours Opt Outs,PRC DELEGATED CO-COMMISSIONING,FALKLAND HOUSE,20369419,83.02 
Department of Health,NHS Sheffield CCG,31/01/2018,C&M-PMS PCO Other,PRC DELEGATED CO-COMMISSIONING,FALKLAND HOUSE,20369419,384.50 
Department of Health,NHS Sheffield CCG,31/01/2018,C&M-PMS Prem Notional Rent,PRC DELEGATED CO-COMMISSIONING,FALKLAND HOUSE,20369419,"1,802.08 "
Department of Health,NHS Sheffield CCG,31/01/2018,C&M-PMS Prem Rates,PRC DELEGATED CO-COMMISSIONING,FALKLAND HOUSE,20369419,713.00 
Department of Health,NHS Sheffield CCG,31/01/2018,C&M-PMS QOF Aspiration,PRC DELEGATED CO-COMMISSIONING,FALKLAND HOUSE,20369419,"3,036.47 "
Department of Health,NHS Sheffield CCG,31/01/2018,C&M-GMS Cost of Drugs -Prescribing,LOCAL ENHANCED SERVICES,FAR LANE MEDICAL CENTRE,20626122,"1,019.70 "
Department of Health,NHS Sheffield CCG,31/01/2018,C&M-GMS Global Sum,PRC DELEGATED CO-COMMISSIONING,FAR LANE MEDICAL CENTRE,20626122,"52,995.22 "
Department of Health,NHS Sheffield CCG,31/01/2018,C&M-GMS PCO Other,PRC DELEGATED CO-COMMISSIONING,FAR LANE MEDICAL CENTRE,20626122,452.60 
Department of Health,NHS Sheffield CCG,31/01/2018,C&M-GMS Prem Notional Rent,PRC DELEGATED CO-COMMISSIONING,FAR LANE MEDICAL CENTRE,20626122,"3,462.50 "
Department of Health,NHS Sheffield CCG,31/01/2018,C&M-GMS Prem Rates,PRC DELEGATED CO-COMMISSIONING,FAR LANE MEDICAL CENTRE,20626122,"1,053.00 "
Department of Health,NHS Sheffield CCG,31/01/2018,C&M-GMS Prem Water Rates,PRC DELEGATED CO-COMMISSIONING,FAR LANE MEDICAL CENTRE,20626122,81.90 
Department of Health,NHS Sheffield CCG,31/01/2018,C&M-GMS Prof Fees Prescribing,PRC DELEGATED CO-COMMISSIONING,FAR LANE MEDICAL CENTRE,20626122,320.31 
Department of Health,NHS Sheffield CCG,31/01/2018,C&M-GMS QOF Aspiration,PRC DELEGATED CO-COMMISSIONING,FAR LANE MEDICAL CENTRE,20626122,"6,224.50 "
Department of Health,NHS Sheffield CCG,31/01/2018,C&M-PMS Contract Value,PRC DELEGATED CO-COMMISSIONING,FIRTH PARK SURGERY,20369417,"70,644.61 "
Department of Health,NHS Sheffield CCG,31/01/2018,C&M-PMS DES Extended Hours Access,PRC DELEGATED CO-COMMISSIONING,FIRTH PARK SURGERY,20369417,"4,628.40 "
Department of Health,NHS Sheffield CCG,31/01/2018,C&M-PMS DES Learn Dsblty Hlth Chk,PRC DELEGATED CO-COMMISSIONING,FIRTH PARK SURGERY,20369417,"2,520.00 "
Department of Health,NHS Sheffield CCG,31/01/2018,C&M-PMS Out of Hours Opt Outs,PRC DELEGATED CO-COMMISSIONING,FIRTH PARK SURGERY,20369417,1.00 
Department of Health,NHS Sheffield CCG,31/01/2018,C&M-PMS Prem Notional Rent,PRC DELEGATED CO-COMMISSIONING,FIRTH PARK SURGERY,20369417,"4,500.00 "
Department of Health,NHS Sheffield CCG,31/01/2018,C&M-PMS Prem Rates,PRC DELEGATED CO-COMMISSIONING,FIRTH PARK SURGERY,20369417,"1,291.00 "
Department of Health,NHS Sheffield CCG,31/01/2018,C&M-PMS QOF Aspiration,PRC DELEGATED CO-COMMISSIONING,FIRTH PARK SURGERY,20369417,"8,194.20 "
Department of Health,NHS Sheffield CCG,31/01/2018,C&M-GMS Cost of Drugs -Prescribing,LOCAL ENHANCED SERVICES,FLOWERS HEALTH CENTRE,20626192,"2,345.66 "
Department of Health,NHS Sheffield CCG,31/01/2018,C&M-GMS Global Sum,PRC DELEGATED CO-COMMISSIONING,FLOWERS HEALTH CENTRE,20626192,"33,765.84 "
Department of Health,NHS Sheffield CCG,31/01/2018,C&M-GMS MPIG Correction Factor,PRC DELEGATED CO-COMMISSIONING,FLOWERS HEALTH CENTRE,20626192,"2,214.46 "
Department of Health,NHS Sheffield CCG,31/01/2018,C&M-GMS Prem Healthcentre Rent,PRC DELEGATED CO-COMMISSIONING,FLOWERS HEALTH CENTRE,20626192,"33,513.30 "
Department of Health,NHS Sheffield CCG,31/01/2018,C&M-GMS Prof Fees Prescribing,PRC DELEGATED CO-COMMISSIONING,FLOWERS HEALTH CENTRE,20626192,446.22 
Department of Health,NHS Sheffield CCG,31/01/2018,C&M-GMS QOF Aspiration,PRC DELEGATED CO-COMMISSIONING,FLOWERS HEALTH CENTRE,20626192,"4,334.56 "
Department of Health,NHS Sheffield CCG,31/01/2018,C&M-PMS Contract Value,PRC DELEGATED CO-COMMISSIONING,FOXHILL MEDICAL CENTRE SHEFFIELD,20369473,"50,364.37 "
Department of Health,NHS Sheffield CCG,31/01/2018,C&M-PMS DES Extended Hours Access,PRC DELEGATED CO-COMMISSIONING,FOXHILL MEDICAL CENTRE SHEFFIELD,20369473,"2,956.88 "
Department of Health,NHS Sheffield CCG,31/01/2018,C&M-PMS Funding Differential Review,PRC DELEGATED CO-COMMISSIONING,FOXHILL MEDICAL CENTRE SHEFFIELD,20369473,"1,451.25 "
Department of Health,NHS Sheffield CCG,31/01/2018,C&M-PMS Out of Hours Opt Outs,PRC DELEGATED CO-COMMISSIONING,FOXHILL MEDICAL CENTRE SHEFFIELD,20369473,12.30 
Department of Health,NHS Sheffield CCG,31/01/2018,C&M-PMS PCO Other,PRC DELEGATED CO-COMMISSIONING,FOXHILL MEDICAL CENTRE SHEFFIELD,20369473,452.60 
Department of Health,NHS Sheffield CCG,31/01/2018,C&M-PMS Prem Healthcentre Rent,PRC DELEGATED CO-COMMISSIONING,FOXHILL MEDICAL CENTRE SHEFFIELD,20369473,"46,118.26 "
Department of Health,NHS Sheffield CCG,31/01/2018,C&M-PMS QOF Aspiration,PRC DELEGATED CO-COMMISSIONING,FOXHILL MEDICAL CENTRE SHEFFIELD,20369473,"5,736.75 "
Department of Health,NHS Sheffield CCG,31/01/2018,C&M-PMS Contract Value,PRC DELEGATED CO-COMMISSIONING,GLEADLESS MEDICAL CENTRE,20369421,"67,346.75 "
Department of Health,NHS Sheffield CCG,31/01/2018,C&M-PMS Funding Differential Review,PRC DELEGATED CO-COMMISSIONING,GLEADLESS MEDICAL CENTRE,20369421,"1,261.42 "
Department of Health,NHS Sheffield CCG,31/01/2018,C&M-PMS Out of Hours Opt Outs,PRC DELEGATED CO-COMMISSIONING,GLEADLESS MEDICAL CENTRE,20369421,14.94 
Department of Health,NHS Sheffield CCG,31/01/2018,C&M-PMS PCO Other,PRC DELEGATED CO-COMMISSIONING,GLEADLESS MEDICAL CENTRE,20369421,452.60 
Department of Health,NHS Sheffield CCG,31/01/2018,C&M-PMS Prem Notional Rent,PRC DELEGATED CO-COMMISSIONING,GLEADLESS MEDICAL CENTRE,20369421,"6,750.00 "
Department of Health,NHS Sheffield CCG,31/01/2018,C&M-PMS Prem Rates,PRC DELEGATED CO-COMMISSIONING,GLEADLESS MEDICAL CENTRE,20369421,"1,250.00 "
Department of Health,NHS Sheffield CCG,31/01/2018,C&M-PMS QOF Aspiration,PRC DELEGATED CO-COMMISSIONING,GLEADLESS MEDICAL CENTRE,20369421,"8,204.51 "
Department of Health,NHS Sheffield CCG,31/01/2018,C&M-GMS Cost of Drugs -Prescribing,LOCAL ENHANCED SERVICES,GRENOSIDE SURGERY,20626129,"2,708.98 "
Department of Health,NHS Sheffield CCG,31/01/2018,C&M-GMS Global Sum,PRC DELEGATED CO-COMMISSIONING,GRENOSIDE SURGERY,20626129,"54,372.88 "
Department of Health,NHS Sheffield CCG,31/01/2018,C&M-GMS PCO Other,PRC DELEGATED CO-COMMISSIONING,GRENOSIDE SURGERY,20626129,452.60 
Department of Health,NHS Sheffield CCG,31/01/2018,C&M-GMS Prem Notional Rent,PRC DELEGATED CO-COMMISSIONING,GRENOSIDE SURGERY,20626129,"8,150.17 "
Department of Health,NHS Sheffield CCG,31/01/2018,C&M-GMS Prem Rates,PRC DELEGATED CO-COMMISSIONING,GRENOSIDE SURGERY,20626129,"1,643.00 "
Department of Health,NHS Sheffield CCG,31/01/2018,C&M-GMS Prof Fees Prescribing,PRC DELEGATED CO-COMMISSIONING,GRENOSIDE SURGERY,20626129,419.72 
Department of Health,NHS Sheffield CCG,31/01/2018,C&M-GMS QOF Aspiration,PRC DELEGATED CO-COMMISSIONING,GRENOSIDE SURGERY,20626129,"6,197.70 "
Department of Health,NHS Sheffield CCG,31/01/2018,C&M-GMS Cost of Drugs -Prescribing,LOCAL ENHANCED SERVICES,GREYSTONES MEDICAL CENTRE,20626131,573.92 
Department of Health,NHS Sheffield CCG,31/01/2018,C&M-GMS Global Sum,PRC DELEGATED CO-COMMISSIONING,GREYSTONES MEDICAL CENTRE,20626131,"18,705.95 "
Department of Health,NHS Sheffield CCG,31/01/2018,C&M-GMS MPIG Correction Factor,PRC DELEGATED CO-COMMISSIONING,GREYSTONES MEDICAL CENTRE,20626131,"1,656.69 "
Department of Health,NHS Sheffield CCG,31/01/2018,C&M-GMS PCO Other,PRC DELEGATED CO-COMMISSIONING,GREYSTONES MEDICAL CENTRE,20626131,384.50 
Department of Health,NHS Sheffield CCG,31/01/2018,C&M-GMS Prem Notional Rent,PRC DELEGATED CO-COMMISSIONING,GREYSTONES MEDICAL CENTRE,20626131,"2,885.42 "
Department of Health,NHS Sheffield CCG,31/01/2018,C&M-GMS Prem Rates,PRC DELEGATED CO-COMMISSIONING,GREYSTONES MEDICAL CENTRE,20626131,583.00 
Department of Health,NHS Sheffield CCG,31/01/2018,C&M-GMS Prem Water Rates,PRC DELEGATED CO-COMMISSIONING,GREYSTONES MEDICAL CENTRE,20626131,79.49 
Department of Health,NHS Sheffield CCG,31/01/2018,C&M-GMS Prof Fees Prescribing,PRC DELEGATED CO-COMMISSIONING,GREYSTONES MEDICAL CENTRE,20626131,170.09 
Department of Health,NHS Sheffield CCG,31/01/2018,C&M-GMS QOF Aspiration,PRC DELEGATED CO-COMMISSIONING,GREYSTONES MEDICAL CENTRE,20626131,"2,071.10 "
Department of Health,NHS Sheffield CCG,31/01/2018,C&M-PMS Contract Value,PRC DELEGATED CO-COMMISSIONING,HACKENTHORPE MEDICAL CENTRE,20369425,"46,099.02 "
Department of Health,NHS Sheffield CCG,31/01/2018,C&M-PMS DES Extended Hours Access,PRC DELEGATED CO-COMMISSIONING,HACKENTHORPE MEDICAL CENTRE,20369425,"3,154.95 "
Department of Health,NHS Sheffield CCG,31/01/2018,C&M-PMS Funding Differential Review,PRC DELEGATED CO-COMMISSIONING,HACKENTHORPE MEDICAL CENTRE,20369425,"2,105.58 "
Department of Health,NHS Sheffield CCG,31/01/2018,C&M-PMS Out of Hours Opt Outs,PRC DELEGATED CO-COMMISSIONING,HACKENTHORPE MEDICAL CENTRE,20369425,5.71 
Department of Health,NHS Sheffield CCG,31/01/2018,C&M-PMS PCO Other,PRC DELEGATED CO-COMMISSIONING,HACKENTHORPE MEDICAL CENTRE,20369425,452.60 
Department of Health,NHS Sheffield CCG,31/01/2018,C&M-PMS Prem Notional Rent,PRC DELEGATED CO-COMMISSIONING,HACKENTHORPE MEDICAL CENTRE,20369425,"4,981.25 "
Department of Health,NHS Sheffield CCG,31/01/2018,C&M-PMS Prem Rates,PRC DELEGATED CO-COMMISSIONING,HACKENTHORPE MEDICAL CENTRE,20369425,972.00 
Department of Health,NHS Sheffield CCG,31/01/2018,C&M-PMS Prem Water Rates,PRC DELEGATED CO-COMMISSIONING,HACKENTHORPE MEDICAL CENTRE,20369425,302.09 
Department of Health,NHS Sheffield CCG,31/01/2018,C&M-PMS QOF Aspiration,PRC DELEGATED CO-COMMISSIONING,HACKENTHORPE MEDICAL CENTRE,20369425,"6,731.39 "
Department of Health,NHS Sheffield CCG,31/01/2018,C&M-GMS Cost of Drugs -Prescribing,LOCAL ENHANCED SERVICES,HANDSWORTH MEDICAL PRACTICE SHEFFIELD,20626127,"3,722.35 "
Department of Health,NHS Sheffield CCG,31/01/2018,C&M-GMS Global Sum,PRC DELEGATED CO-COMMISSIONING,HANDSWORTH MEDICAL PRACTICE SHEFFIELD,20626127,"71,422.44 "
Department of Health,NHS Sheffield CCG,31/01/2018,C&M-GMS Prem Notional Rent,PRC DELEGATED CO-COMMISSIONING,HANDSWORTH MEDICAL PRACTICE SHEFFIELD,20626127,"3,321.66 "
Department of Health,NHS Sheffield CCG,31/01/2018,C&M-GMS Prem Rates,PRC DELEGATED CO-COMMISSIONING,HANDSWORTH MEDICAL PRACTICE SHEFFIELD,20626127,"1,214.00 "
Department of Health,NHS Sheffield CCG,31/01/2018,C&M-GMS Prem Water Rates,PRC DELEGATED CO-COMMISSIONING,HANDSWORTH MEDICAL PRACTICE SHEFFIELD,20626127,322.80 
Department of Health,NHS Sheffield CCG,31/01/2018,C&M-GMS Prof Fees Prescribing,PRC DELEGATED CO-COMMISSIONING,HANDSWORTH MEDICAL PRACTICE SHEFFIELD,20626127,795.24 
Department of Health,NHS Sheffield CCG,31/01/2018,C&M-GMS QOF Aspiration,PRC DELEGATED CO-COMMISSIONING,HANDSWORTH MEDICAL PRACTICE SHEFFIELD,20626127,"8,011.43 "
Department of Health,NHS Sheffield CCG,31/01/2018,Cont Care-Physical Disab (<65),CHC ADULT FULLY FUNDED,HC ONE LTD,20439842,"26,502.64 "
Department of Health,NHS Sheffield CCG,31/01/2018,Cont Care-Physical Disab (<65),CHC ADULT FULLY FUNDED,HC ONE LTD,20439874,"26,558.68 "
Department of Health,NHS Sheffield CCG,31/01/2018,C&M-GMS Cost of Drugs -Prescribing,LOCAL ENHANCED SERVICES,HEALTH CARE SURGERY,20626137,"2,035.77 "
Department of Health,NHS Sheffield CCG,31/01/2018,C&M-GMS Global Sum,PRC DELEGATED CO-COMMISSIONING,HEALTH CARE SURGERY,20626137,"36,036.90 "
Department of Health,NHS Sheffield CCG,31/01/2018,C&M-GMS MPIG Correction Factor,PRC DELEGATED CO-COMMISSIONING,HEALTH CARE SURGERY,20626137,"1,170.03 "
Department of Health,NHS Sheffield CCG,31/01/2018,C&M-GMS PCO Other,PRC DELEGATED CO-COMMISSIONING,HEALTH CARE SURGERY,20626137,384.50 
Department of Health,NHS Sheffield CCG,31/01/2018,C&M-GMS Prem Notional Rent,PRC DELEGATED CO-COMMISSIONING,HEALTH CARE SURGERY,20626137,"3,862.50 "
Department of Health,NHS Sheffield CCG,31/01/2018,C&M-GMS Prem Rates,PRC DELEGATED CO-COMMISSIONING,HEALTH CARE SURGERY,20626137,518.00 
Department of Health,NHS Sheffield CCG,31/01/2018,C&M-GMS Prof Fees Prescribing,PRC DELEGATED CO-COMMISSIONING,HEALTH CARE SURGERY,20626137,468.31 
Department of Health,NHS Sheffield CCG,31/01/2018,C&M-GMS QOF Aspiration,PRC DELEGATED CO-COMMISSIONING,HEALTH CARE SURGERY,20626137,"4,381.71 "
Department of Health,NHS Sheffield CCG,31/01/2018,C&M-GMS Global Sum,PRC DELEGATED CO-COMMISSIONING,HEELEY GREEN SURGERY,20626133,"39,706.80 "
Department of Health,NHS Sheffield CCG,31/01/2018,C&M-GMS MPIG Correction Factor,PRC DELEGATED CO-COMMISSIONING,HEELEY GREEN SURGERY,20626133,564.30 
Department of Health,NHS Sheffield CCG,31/01/2018,C&M-GMS Prem Notional Rent,PRC DELEGATED CO-COMMISSIONING,HEELEY GREEN SURGERY,20626133,"3,254.17 "
Department of Health,NHS Sheffield CCG,31/01/2018,C&M-GMS Prem Rates,PRC DELEGATED CO-COMMISSIONING,HEELEY GREEN SURGERY,20626133,245.00 
Department of Health,NHS Sheffield CCG,31/01/2018,C&M-GMS QOF Aspiration,PRC DELEGATED CO-COMMISSIONING,HEELEY GREEN SURGERY,20626133,"4,920.38 "
Department of Health,NHS Sheffield CCG,31/01/2018,C&M-GMS Cost of Drugs -Prescribing,LOCAL ENHANCED SERVICES,HOLLIES MEDICAL CENTRE,20626135,"4,048.53 "
Department of Health,NHS Sheffield CCG,31/01/2018,C&M-GMS Global Sum,PRC DELEGATED CO-COMMISSIONING,HOLLIES MEDICAL CENTRE,20626135,"53,581.74 "
Department of Health,NHS Sheffield CCG,31/01/2018,C&M-GMS MPIG Correction Factor,PRC DELEGATED CO-COMMISSIONING,HOLLIES MEDICAL CENTRE,20626135,"2,179.09 "
Department of Health,NHS Sheffield CCG,31/01/2018,C&M-GMS PCO Other,PRC DELEGATED CO-COMMISSIONING,HOLLIES MEDICAL CENTRE,20626135,452.60 
Department of Health,NHS Sheffield CCG,31/01/2018,C&M-GMS Prem Notional Rent,PRC DELEGATED CO-COMMISSIONING,HOLLIES MEDICAL CENTRE,20626135,"3,229.17 "
Department of Health,NHS Sheffield CCG,31/01/2018,C&M-GMS Prem Rates,PRC DELEGATED CO-COMMISSIONING,HOLLIES MEDICAL CENTRE,20626135,"1,188.00 "
Department of Health,NHS Sheffield CCG,31/01/2018,C&M-GMS Prof Fees Prescribing,PRC DELEGATED CO-COMMISSIONING,HOLLIES MEDICAL CENTRE,20626135,830.58 
Department of Health,NHS Sheffield CCG,31/01/2018,C&M-GMS QOF Aspiration,PRC DELEGATED CO-COMMISSIONING,HOLLIES MEDICAL CENTRE,20626135,"6,561.21 "
Department of Health,NHS Sheffield CCG,31/01/2018,Cont Care-Physical Disab (<65),CHC ADULT FULLY FUNDED,HORIZON CARE HOMES LTD,20426125,"51,041.00 "
Department of Health,NHS Sheffield CCG,31/01/2018,Cont Care-Physical Disab (<65),CHC ADULT FULLY FUNDED,HORIZON CARE HOMES LTD,20439904,"27,483.80 "
Department of Health,NHS Sheffield CCG,31/01/2018,C&M-PMS Contract Value,PRC DELEGATED CO-COMMISSIONING,JAUNTY SPRINGS HEALTH CENTRE,20369427,"28,777.86 "
Department of Health,NHS Sheffield CCG,31/01/2018,C&M-PMS DES Extended Hours Access,PRC DELEGATED CO-COMMISSIONING,JAUNTY SPRINGS HEALTH CENTRE,20369427,"1,719.98 "
Department of Health,NHS Sheffield CCG,31/01/2018,C&M-PMS Funding Differential Review,PRC DELEGATED CO-COMMISSIONING,JAUNTY SPRINGS HEALTH CENTRE,20369427,448.00 
Department of Health,NHS Sheffield CCG,31/01/2018,C&M-PMS Out of Hours Opt Outs,PRC DELEGATED CO-COMMISSIONING,JAUNTY SPRINGS HEALTH CENTRE,20369427,4.59 
Department of Health,NHS Sheffield CCG,31/01/2018,C&M-PMS PCO Other,PRC DELEGATED CO-COMMISSIONING,JAUNTY SPRINGS HEALTH CENTRE,20369427,384.50 
Department of Health,NHS Sheffield CCG,31/01/2018,C&M-PMS Prem Notional Rent,PRC DELEGATED CO-COMMISSIONING,JAUNTY SPRINGS HEALTH CENTRE,20369427,"3,208.33 "
Department of Health,NHS Sheffield CCG,31/01/2018,C&M-PMS Prem Rates,PRC DELEGATED CO-COMMISSIONING,JAUNTY SPRINGS HEALTH CENTRE,20369427,570.00 
Department of Health,NHS Sheffield CCG,31/01/2018,C&M-PMS QOF Aspiration,PRC DELEGATED CO-COMMISSIONING,JAUNTY SPRINGS HEALTH CENTRE,20369427,"4,393.31 "
Department of Health,NHS Sheffield CCG,31/01/2018,C&M-GMS IT Comm Servs -GP Practices,PRIMARY CARE IT,KIER BUSINESS SERVICES LTD,20333733,"105,622.80 "
Department of Health,NHS Sheffield CCG,31/01/2018,FM Computer Contracts,BUSINESS INFORMATICS,KIER BUSINESS SERVICES LTD,20333733,"37,381.20 "
Department of Health,NHS Sheffield CCG,31/01/2018,C&M-GMS IT Comm Servs -GP Practices,PRIMARY CARE IT,KIER BUSINESS SERVICES LTD,20702763,"105,622.80 "
Department of Health,NHS Sheffield CCG,31/01/2018,FM Computer Contracts,BUSINESS INFORMATICS,KIER BUSINESS SERVICES LTD,20702763,"37,381.20 "
Department of Health,NHS Sheffield CCG,31/01/2018,C&M-GMS LES Translation Fees,INTERPRETING SERVICES,LANGUAGELINE SOLUTIONS,20383635,"27,606.00 "
Department of Health,NHS Sheffield CCG,31/01/2018,C&M-GMS LES Translation Fees,INTERPRETING SERVICES,LANGUAGELINE SOLUTIONS,20383653,"31,819.44 "
Department of Health,NHS Sheffield CCG,31/01/2018,Hcare Srv Rec NHS Trust-Contract Baseline,ACUTE COMMISSIONING,LEEDS TEACHING HOSPITALS NHS TRUST,20383614,"53,622.82 "
Department of Health,NHS Sheffield CCG,31/01/2018,Cont Care-Physical Disab (<65),CHC ADULT FULLY FUNDED,LONGLEY HEALTH CARE LTD,20426089,"80,704.20 "
Department of Health,NHS Sheffield CCG,31/01/2018,Cont Care-Physical Disab (<65),CHC ADULT FULLY FUNDED,LOXLEY HEALTH CARE LTD,20426081,"53,456.82 "
Department of Health,NHS Sheffield CCG,31/01/2018,C&M-PMS Contract Value,PRC DELEGATED CO-COMMISSIONING,MANCHESTER ROAD SURGERY SHEFFIELD,20369431,"30,516.25 "
Department of Health,NHS Sheffield CCG,31/01/2018,C&M-PMS Funding Differential Review,PRC DELEGATED CO-COMMISSIONING,MANCHESTER ROAD SURGERY SHEFFIELD,20369431,446.67 
Department of Health,NHS Sheffield CCG,31/01/2018,C&M-PMS Prem Cost Rent,PRC DELEGATED CO-COMMISSIONING,MANCHESTER ROAD SURGERY SHEFFIELD,20369431,"3,472.17 "
Department of Health,NHS Sheffield CCG,31/01/2018,C&M-PMS Prem Notional Rent,PRC DELEGATED CO-COMMISSIONING,MANCHESTER ROAD SURGERY SHEFFIELD,20369431,442.92 
Department of Health,NHS Sheffield CCG,31/01/2018,C&M-PMS Prem Rates,PRC DELEGATED CO-COMMISSIONING,MANCHESTER ROAD SURGERY SHEFFIELD,20369431,920.00 
Department of Health,NHS Sheffield CCG,31/01/2018,C&M-PMS QOF Aspiration,PRC DELEGATED CO-COMMISSIONING,MANCHESTER ROAD SURGERY SHEFFIELD,20369431,"4,335.60 "
Department of Health,NHS Sheffield CCG,31/01/2018,C&M-GMS Cost of Drugs -Prescribing,LOCAL ENHANCED SERVICES,MANOR PARK MEDICAL CENTRE SHEFFIELD,20626147,"2,162.50 "
Department of Health,NHS Sheffield CCG,31/01/2018,C&M-GMS Global Sum,PRC DELEGATED CO-COMMISSIONING,MANOR PARK MEDICAL CENTRE SHEFFIELD,20626147,"33,167.48 "
Department of Health,NHS Sheffield CCG,31/01/2018,C&M-GMS MPIG Correction Factor,PRC DELEGATED CO-COMMISSIONING,MANOR PARK MEDICAL CENTRE SHEFFIELD,20626147,559.19 
Department of Health,NHS Sheffield CCG,31/01/2018,C&M-GMS Prem Notional Rent,PRC DELEGATED CO-COMMISSIONING,MANOR PARK MEDICAL CENTRE SHEFFIELD,20626147,"3,050.00 "
Department of Health,NHS Sheffield CCG,31/01/2018,C&M-GMS Prem Rates,PRC DELEGATED CO-COMMISSIONING,MANOR PARK MEDICAL CENTRE SHEFFIELD,20626147,428.00 
Department of Health,NHS Sheffield CCG,31/01/2018,C&M-GMS Prof Fees Prescribing,PRC DELEGATED CO-COMMISSIONING,MANOR PARK MEDICAL CENTRE SHEFFIELD,20626147,426.34 
Department of Health,NHS Sheffield CCG,31/01/2018,C&M-GMS QOF Aspiration,PRC DELEGATED CO-COMMISSIONING,MANOR PARK MEDICAL CENTRE SHEFFIELD,20626147,"4,479.66 "
Department of Health,NHS Sheffield CCG,31/01/2018,C&M-GMS Cost of Drugs -Prescribing,LOCAL ENHANCED SERVICES,MATHEWS PRACTICE,20650756,445.31 
Department of Health,NHS Sheffield CCG,31/01/2018,C&M-GMS Global Sum,PRC DELEGATED CO-COMMISSIONING,MATHEWS PRACTICE,20650756,"63,567.88 "
Department of Health,NHS Sheffield CCG,31/01/2018,C&M-GMS MPIG Correction Factor,PRC DELEGATED CO-COMMISSIONING,MATHEWS PRACTICE,20650756,898.44 
Department of Health,NHS Sheffield CCG,31/01/2018,C&M-GMS PCO Other,PRC DELEGATED CO-COMMISSIONING,MATHEWS PRACTICE,20650756,"4,526.00 "
Department of Health,NHS Sheffield CCG,31/01/2018,C&M-GMS Prem Notional Rent,PRC DELEGATED CO-COMMISSIONING,MATHEWS PRACTICE,20650756,"8,660.42 "
Department of Health,NHS Sheffield CCG,31/01/2018,C&M-GMS Prem Rates,PRC DELEGATED CO-COMMISSIONING,MATHEWS PRACTICE,20650756,"1,757.00 "
Department of Health,NHS Sheffield CCG,31/01/2018,C&M-GMS Prof Fees Prescribing,PRC DELEGATED CO-COMMISSIONING,MATHEWS PRACTICE,20650756,136.96 
Department of Health,NHS Sheffield CCG,31/01/2018,C&M-GMS QOF Aspiration,PRC DELEGATED CO-COMMISSIONING,MATHEWS PRACTICE,20650756,"9,686.98 "
Department of Health,NHS Sheffield CCG,31/01/2018,C&M-PMS Contract Value,PRC DELEGATED CO-COMMISSIONING,MEADOWHEAD GROUP PRACTICE,20369429,"75,691.91 "
Department of Health,NHS Sheffield CCG,31/01/2018,C&M-PMS DES Extended Hours Access,PRC DELEGATED CO-COMMISSIONING,MEADOWHEAD GROUP PRACTICE,20369429,"4,688.25 "
Department of Health,NHS Sheffield CCG,31/01/2018,C&M-PMS Out of Hours Opt Outs,PRC DELEGATED CO-COMMISSIONING,MEADOWHEAD GROUP PRACTICE,20369429,15.35 
Department of Health,NHS Sheffield CCG,31/01/2018,C&M-PMS PCO Locum Adop/Pat/Mat,PRC DELEGATED CO-COMMISSIONING,MEADOWHEAD GROUP PRACTICE,20369429,"27,282.00 "
Department of Health,NHS Sheffield CCG,31/01/2018,C&M-PMS Prem Cost Rent,PRC DELEGATED CO-COMMISSIONING,MEADOWHEAD GROUP PRACTICE,20369429,"3,647.42 "
Department of Health,NHS Sheffield CCG,31/01/2018,C&M-PMS Prem Notional Rent,PRC DELEGATED CO-COMMISSIONING,MEADOWHEAD GROUP PRACTICE,20369429,"3,358.33 "
Department of Health,NHS Sheffield CCG,31/01/2018,C&M-PMS Prem Rates,PRC DELEGATED CO-COMMISSIONING,MEADOWHEAD GROUP PRACTICE,20369429,"1,709.00 "
Department of Health,NHS Sheffield CCG,31/01/2018,C&M-PMS QOF Aspiration,PRC DELEGATED CO-COMMISSIONING,MEADOWHEAD GROUP PRACTICE,20369429,"10,533.01 "
Department of Health,NHS Sheffield CCG,31/01/2018,C&M-GMS Cost of Drugs -Prescribing,LOCAL ENHANCED SERVICES,MEDICAL CENTRE CRYSTAL PEAKS,20626141,"3,342.26 "
Department of Health,NHS Sheffield CCG,31/01/2018,C&M-GMS Global Sum,PRC DELEGATED CO-COMMISSIONING,MEDICAL CENTRE CRYSTAL PEAKS,20626141,"43,614.85 "
Department of Health,NHS Sheffield CCG,31/01/2018,C&M-GMS MPIG Correction Factor,PRC DELEGATED CO-COMMISSIONING,MEDICAL CENTRE CRYSTAL PEAKS,20626141,"1,697.01 "
Department of Health,NHS Sheffield CCG,31/01/2018,C&M-GMS PCO Other,PRC DELEGATED CO-COMMISSIONING,MEDICAL CENTRE CRYSTAL PEAKS,20626141,452.60 
Department of Health,NHS Sheffield CCG,31/01/2018,C&M-GMS Prem Actual Rent,PRC DELEGATED CO-COMMISSIONING,MEDICAL CENTRE CRYSTAL PEAKS,20626141,"17,610.00 "
Department of Health,NHS Sheffield CCG,31/01/2018,C&M-GMS Prem Notional Rent,PRC DELEGATED CO-COMMISSIONING,MEDICAL CENTRE CRYSTAL PEAKS,20626141,270.00 
Department of Health,NHS Sheffield CCG,31/01/2018,C&M-GMS Prem Rates,PRC DELEGATED CO-COMMISSIONING,MEDICAL CENTRE CRYSTAL PEAKS,20626141,"1,822.00 "
Department of Health,NHS Sheffield CCG,31/01/2018,C&M-GMS Prof Fees Prescribing,PRC DELEGATED CO-COMMISSIONING,MEDICAL CENTRE CRYSTAL PEAKS,20626141,"1,007.31 "
Department of Health,NHS Sheffield CCG,31/01/2018,C&M-GMS QOF Aspiration,PRC DELEGATED CO-COMMISSIONING,MEDICAL CENTRE CRYSTAL PEAKS,20626141,"6,023.36 "
Department of Health,NHS Sheffield CCG,31/01/2018,C&M-GMS Cost of Drugs -Prescribing,LOCAL ENHANCED SERVICES,MILL ROAD SURGERY SHEFFIELD,20626149,"2,378.72 "
Department of Health,NHS Sheffield CCG,31/01/2018,C&M-GMS Global Sum,PRC DELEGATED CO-COMMISSIONING,MILL ROAD SURGERY SHEFFIELD,20626149,"38,254.51 "
Department of Health,NHS Sheffield CCG,31/01/2018,C&M-GMS MPIG Correction Factor,PRC DELEGATED CO-COMMISSIONING,MILL ROAD SURGERY SHEFFIELD,20626149,183.06 
Department of Health,NHS Sheffield CCG,31/01/2018,C&M-GMS PCO Other,PRC DELEGATED CO-COMMISSIONING,MILL ROAD SURGERY SHEFFIELD,20626149,452.60 
Department of Health,NHS Sheffield CCG,31/01/2018,C&M-GMS Prem Notional Rent,PRC DELEGATED CO-COMMISSIONING,MILL ROAD SURGERY SHEFFIELD,20626149,"4,587.50 "
Department of Health,NHS Sheffield CCG,31/01/2018,C&M-GMS Prem Rates,PRC DELEGATED CO-COMMISSIONING,MILL ROAD SURGERY SHEFFIELD,20626149,833.00 
Department of Health,NHS Sheffield CCG,31/01/2018,C&M-GMS Prof Fees Prescribing,PRC DELEGATED CO-COMMISSIONING,MILL ROAD SURGERY SHEFFIELD,20626149,395.41 
Department of Health,NHS Sheffield CCG,31/01/2018,C&M-GMS QOF Aspiration,PRC DELEGATED CO-COMMISSIONING,MILL ROAD SURGERY SHEFFIELD,20626149,"5,445.09 "
Department of Health,NHS Sheffield CCG,31/01/2018,C&M-PMS Contract Value,PRC DELEGATED CO-COMMISSIONING,MOSBOROUGH HEALTH CENTRE,20369433,"45,903.40 "
Department of Health,NHS Sheffield CCG,31/01/2018,C&M-PMS DES Extended Hours Access,PRC DELEGATED CO-COMMISSIONING,MOSBOROUGH HEALTH CENTRE,20369433,"3,118.38 "
Department of Health,NHS Sheffield CCG,31/01/2018,C&M-PMS Funding Differential Review,PRC DELEGATED CO-COMMISSIONING,MOSBOROUGH HEALTH CENTRE,20369433,"1,253.00 "
Department of Health,NHS Sheffield CCG,31/01/2018,C&M-PMS Out of Hours Opt Outs,PRC DELEGATED CO-COMMISSIONING,MOSBOROUGH HEALTH CENTRE,20369433,19.85 
Department of Health,NHS Sheffield CCG,31/01/2018,C&M-PMS PCO Other,PRC DELEGATED CO-COMMISSIONING,MOSBOROUGH HEALTH CENTRE,20369433,452.60 
Department of Health,NHS Sheffield CCG,31/01/2018,C&M-PMS Prem Notional Rent,PRC DELEGATED CO-COMMISSIONING,MOSBOROUGH HEALTH CENTRE,20369433,"4,091.67 "
Department of Health,NHS Sheffield CCG,31/01/2018,C&M-PMS Prem Rates,PRC DELEGATED CO-COMMISSIONING,MOSBOROUGH HEALTH CENTRE,20369433,"7,636.61 "
Department of Health,NHS Sheffield CCG,31/01/2018,C&M-PMS Prem Water Rates,PRC DELEGATED CO-COMMISSIONING,MOSBOROUGH HEALTH CENTRE,20369433,105.14 
Department of Health,NHS Sheffield CCG,31/01/2018,C&M-PMS QOF Aspiration,PRC DELEGATED CO-COMMISSIONING,MOSBOROUGH HEALTH CENTRE,20369433,"6,017.44 "
Department of Health,NHS Sheffield CCG,31/01/2018,Clinical&Medical-Voluntary Sector,CLINICAL LEADS,NDVA,20511095,"74,500.00 "
Department of Health,NHS Sheffield CCG,31/01/2018,C&M-PMS Contract Value,PRC DELEGATED CO-COMMISSIONING,NETHERGREEN SURGERY,20369435,"60,420.72 "
Department of Health,NHS Sheffield CCG,31/01/2018,C&M-PMS DES Extended Hours Access,PRC DELEGATED CO-COMMISSIONING,NETHERGREEN SURGERY,20369435,"4,435.08 "
Department of Health,NHS Sheffield CCG,31/01/2018,C&M-PMS Funding Differential Review,PRC DELEGATED CO-COMMISSIONING,NETHERGREEN SURGERY,20369435,"1,876.58 "
Department of Health,NHS Sheffield CCG,31/01/2018,C&M-PMS Prem Cost Rent,PRC DELEGATED CO-COMMISSIONING,NETHERGREEN SURGERY,20369435,"5,057.33 "
Department of Health,NHS Sheffield CCG,31/01/2018,C&M-PMS Prem Rates,PRC DELEGATED CO-COMMISSIONING,NETHERGREEN SURGERY,20369435,"1,200.00 "
Department of Health,NHS Sheffield CCG,31/01/2018,C&M-PMS QOF Aspiration,PRC DELEGATED CO-COMMISSIONING,NETHERGREEN SURGERY,20369435,"6,339.79 "
Department of Health,NHS Sheffield CCG,31/01/2018,C&M-GMS Prem Other,PRC DELEGATED CO-COMMISSIONING,NHS ENGLAND,20612915,"5,080.23 "
Department of Health,NHS Sheffield CCG,31/01/2018,Contract- Refuse & Clinical Waste,PRC DELEGATED CO-COMMISSIONING,NHS ENGLAND,20612915,"63,592.69 "
Department of Health,NHS Sheffield CCG,31/01/2018,Other Gen Supplies & Srv,PRC DELEGATED CO-COMMISSIONING,NHS ENGLAND,20612915,"10,491.00 "
Department of Health,NHS Sheffield CCG,31/01/2018,Prescribing,PRESCRIBING,NHS NORTH DERBYSHIRE CCG,20597205,"25,593.14 "
Department of Health,NHS Sheffield CCG,31/01/2018,Charges from CSU,BUSINESS INFORMATICS,NHS NORTH OF ENGLAND CSU,20290018,"30,083.00 "
Department of Health,NHS Sheffield CCG,31/01/2018,Charges from CSU,BUSINESS INFORMATICS,NHS NORTH OF ENGLAND CSU,20612913,"30,083.00 "
Department of Health,NHS Sheffield CCG,31/01/2018,Rent,CONTINUING HEALTHCARE ASSESSMENT & SUPPORT,NHS PROPERTY SERVICES LTD,20383548,"29,081.71 "
Department of Health,NHS Sheffield CCG,31/01/2018,Rent,ESTATES AND FACILITIES,NHS PROPERTY SERVICES LTD,20383548,"65,585.99 "
Department of Health,NHS Sheffield CCG,31/01/2018,Rent,CONTINUING HEALTHCARE ASSESSMENT & SUPPORT,NHS PROPERTY SERVICES LTD,20383573,"48,079.07 "
Department of Health,NHS Sheffield CCG,31/01/2018,Rent,ESTATES AND FACILITIES,NHS PROPERTY SERVICES LTD,20383573,"108,429.43 "
Department of Health,NHS Sheffield CCG,31/01/2018,Rent,CONTINUING HEALTHCARE ASSESSMENT & SUPPORT,NHS PROPERTY SERVICES LTD,20383581,"29,081.71 "
Department of Health,NHS Sheffield CCG,31/01/2018,Rent,ESTATES AND FACILITIES,NHS PROPERTY SERVICES LTD,20383581,"65,585.99 "
Department of Health,NHS Sheffield CCG,31/01/2018,Rent,CONTINUING HEALTHCARE ASSESSMENT & SUPPORT,NHS PROPERTY SERVICES LTD,20383589,"24,039.54 "
Department of Health,NHS Sheffield CCG,31/01/2018,Rent,ESTATES AND FACILITIES,NHS PROPERTY SERVICES LTD,20383589,"54,214.71 "
Department of Health,NHS Sheffield CCG,31/01/2018,Rent,CONTINUING HEALTHCARE ASSESSMENT & SUPPORT,NHS PROPERTY SERVICES LTD,20383597,"29,081.71 "
Department of Health,NHS Sheffield CCG,31/01/2018,Rent,ESTATES AND FACILITIES,NHS PROPERTY SERVICES LTD,20383597,"65,585.99 "
Department of Health,NHS Sheffield CCG,31/01/2018,Rent,ESTATES AND FACILITIES,NHS PROPERTY SERVICES LTD,20383599,"(44,193.69)"
Department of Health,NHS Sheffield CCG,31/01/2018,Voids and Subsidies,RECHARGES NHS PROPERTY SERVICES LTD,NHS PROPERTY SERVICES LTD,20383697,"53,889.14 "
Department of Health,NHS Sheffield CCG,31/01/2018,Healthcare Srv Rec CCG,CLINICAL LEADS,NHS ROTHERHAM CCG,20511097,"148,500.00 "
Department of Health,NHS Sheffield CCG,31/01/2018,C&M-GMS Cost of Drugs -Prescribing,LOCAL ENHANCED SERVICES,NORFOLK PARK HEALTH CENTRE,20626154,"1,237.84 "
Department of Health,NHS Sheffield CCG,31/01/2018,C&M-GMS Global Sum,PRC DELEGATED CO-COMMISSIONING,NORFOLK PARK HEALTH CENTRE,20626154,"34,538.88 "
Department of Health,NHS Sheffield CCG,31/01/2018,C&M-GMS MPIG Correction Factor,PRC DELEGATED CO-COMMISSIONING,NORFOLK PARK HEALTH CENTRE,20626154,"1,386.91 "
Department of Health,NHS Sheffield CCG,31/01/2018,C&M-GMS Prem Healthcentre Rent,PRC DELEGATED CO-COMMISSIONING,NORFOLK PARK HEALTH CENTRE,20626154,"23,010.32 "
Department of Health,NHS Sheffield CCG,31/01/2018,C&M-GMS Prof Fees Prescribing,PRC DELEGATED CO-COMMISSIONING,NORFOLK PARK HEALTH CENTRE,20626154,311.47 
Department of Health,NHS Sheffield CCG,31/01/2018,C&M-GMS QOF Aspiration,PRC DELEGATED CO-COMMISSIONING,NORFOLK PARK HEALTH CENTRE,20626154,"4,068.39 "
Department of Health,NHS Sheffield CCG,31/01/2018,Hcare Srv Rec NHS Trust-Non Contract,NCAS/OATS,NORTHUMBERLAND TYNE AND WEAR NHS FOUNDATION TRUST,20333494,"74,741.00 "
Department of Health,NHS Sheffield CCG,31/01/2018,C&M-GMS Cost of Drugs -Prescribing,LOCAL ENHANCED SERVICES,NORWOOD MEDICAL CENTRE SHEFFIELD,20626157,"2,142.32 "
Department of Health,NHS Sheffield CCG,31/01/2018,C&M-GMS Global Sum,PRC DELEGATED CO-COMMISSIONING,NORWOOD MEDICAL CENTRE SHEFFIELD,20626157,"61,119.87 "
Department of Health,NHS Sheffield CCG,31/01/2018,C&M-GMS PCO Other,PRC DELEGATED CO-COMMISSIONING,NORWOOD MEDICAL CENTRE SHEFFIELD,20626157,452.60 
Department of Health,NHS Sheffield CCG,31/01/2018,C&M-GMS Prem Notional Rent,PRC DELEGATED CO-COMMISSIONING,NORWOOD MEDICAL CENTRE SHEFFIELD,20626157,"5,187.50 "
Department of Health,NHS Sheffield CCG,31/01/2018,C&M-GMS Prof Fees Prescribing,PRC DELEGATED CO-COMMISSIONING,NORWOOD MEDICAL CENTRE SHEFFIELD,20626157,616.31 
Department of Health,NHS Sheffield CCG,31/01/2018,C&M-GMS QOF Aspiration,PRC DELEGATED CO-COMMISSIONING,NORWOOD MEDICAL CENTRE SHEFFIELD,20626157,"8,411.55 "
Department of Health,NHS Sheffield CCG,31/01/2018,Clinical&Medical-Independent Sector,ACUTE COMMISSIONING,ONEHEALTH GROUP,20527198,"(45,951.01)"
Department of Health,NHS Sheffield CCG,31/01/2018,C&M-GMS Cost of Drugs -Dispensing,LOCAL ENHANCED SERVICES,OUGHTIBRIDGE SURGERY,20626161,"32,829.14 "
Department of Health,NHS Sheffield CCG,31/01/2018,C&M-GMS Global Sum,PRC DELEGATED CO-COMMISSIONING,OUGHTIBRIDGE SURGERY,20626161,"41,325.76 "
Department of Health,NHS Sheffield CCG,31/01/2018,C&M-GMS Prem Notional Rent,PRC DELEGATED CO-COMMISSIONING,OUGHTIBRIDGE SURGERY,20626161,"3,957.33 "
Department of Health,NHS Sheffield CCG,31/01/2018,C&M-GMS Prem Water Rates,PRC DELEGATED CO-COMMISSIONING,OUGHTIBRIDGE SURGERY,20626161,146.54 
Department of Health,NHS Sheffield CCG,31/01/2018,C&M-GMS Prof Fees Dispensing,PRC DELEGATED CO-COMMISSIONING,OUGHTIBRIDGE SURGERY,20626161,"4,740.75 "
Department of Health,NHS Sheffield CCG,31/01/2018,C&M-GMS PrscrptnChrgsColl&RmttdbyGP,LOCAL ENHANCED SERVICES,OUGHTIBRIDGE SURGERY,20626161,559.00 
Department of Health,NHS Sheffield CCG,31/01/2018,C&M-GMS QOF Aspiration,PRC DELEGATED CO-COMMISSIONING,OUGHTIBRIDGE SURGERY,20626161,"4,693.88 "
Department of Health,NHS Sheffield CCG,31/01/2018,C&M-PMS Contract Value,PRC DELEGATED CO-COMMISSIONING,OWLTHORPE MEDICAL CENTRE,20369437,"36,000.73 "
Department of Health,NHS Sheffield CCG,31/01/2018,C&M-PMS DES Extended Hours Access,PRC DELEGATED CO-COMMISSIONING,OWLTHORPE MEDICAL CENTRE,20369437,"2,203.53 "
Department of Health,NHS Sheffield CCG,31/01/2018,C&M-PMS Funding Differential Review,PRC DELEGATED CO-COMMISSIONING,OWLTHORPE MEDICAL CENTRE,20369437,"1,499.67 "
Department of Health,NHS Sheffield CCG,31/01/2018,C&M-PMS Out of Hours Opt Outs,PRC DELEGATED CO-COMMISSIONING,OWLTHORPE MEDICAL CENTRE,20369437,119.52 
Department of Health,NHS Sheffield CCG,31/01/2018,C&M-PMS PCO Other,PRC DELEGATED CO-COMMISSIONING,OWLTHORPE MEDICAL CENTRE,20369437,384.50 
Department of Health,NHS Sheffield CCG,31/01/2018,C&M-PMS Prem Actual Rent,PRC DELEGATED CO-COMMISSIONING,OWLTHORPE MEDICAL CENTRE,20369437,"7,539.58 "
Department of Health,NHS Sheffield CCG,31/01/2018,C&M-PMS QOF Aspiration,PRC DELEGATED CO-COMMISSIONING,OWLTHORPE MEDICAL CENTRE,20369437,"4,031.40 "
Department of Health,NHS Sheffield CCG,31/01/2018,C&M-PMS Contract Value,PRC DELEGATED CO-COMMISSIONING,PAGE HALL MEDICAL CENTRE,20369439,"53,969.79 "
Department of Health,NHS Sheffield CCG,31/01/2018,C&M-PMS DES Extended Hours Access,PRC DELEGATED CO-COMMISSIONING,PAGE HALL MEDICAL CENTRE,20369439,"3,538.75 "
Department of Health,NHS Sheffield CCG,31/01/2018,C&M-PMS Funding Differential Review,PRC DELEGATED CO-COMMISSIONING,PAGE HALL MEDICAL CENTRE,20369439,"5,391.08 "
Department of Health,NHS Sheffield CCG,31/01/2018,C&M-PMS Out of Hours Opt Outs,PRC DELEGATED CO-COMMISSIONING,PAGE HALL MEDICAL CENTRE,20369439,7.91 
Department of Health,NHS Sheffield CCG,31/01/2018,C&M-PMS Prem Actual Rent,PRC DELEGATED CO-COMMISSIONING,PAGE HALL MEDICAL CENTRE,20369439,135.00 
Department of Health,NHS Sheffield CCG,31/01/2018,C&M-PMS Prem Notional Rent,PRC DELEGATED CO-COMMISSIONING,PAGE HALL MEDICAL CENTRE,20369439,"4,833.33 "
Department of Health,NHS Sheffield CCG,31/01/2018,C&M-PMS Prem Rates,PRC DELEGATED CO-COMMISSIONING,PAGE HALL MEDICAL CENTRE,20369439,875.00 
Department of Health,NHS Sheffield CCG,31/01/2018,C&M-PMS QOF Aspiration,PRC DELEGATED CO-COMMISSIONING,PAGE HALL MEDICAL CENTRE,20369439,"5,102.24 "
Department of Health,NHS Sheffield CCG,31/01/2018,C&M-PMS Contract Value,PRC DELEGATED CO-COMMISSIONING,PARK HEALTH CENTRE,20369441,"40,085.43 "
Department of Health,NHS Sheffield CCG,31/01/2018,C&M-PMS DES Extended Hours Access,PRC DELEGATED CO-COMMISSIONING,PARK HEALTH CENTRE,20369441,"2,487.10 "
Department of Health,NHS Sheffield CCG,31/01/2018,C&M-PMS Funding Differential Review,PRC DELEGATED CO-COMMISSIONING,PARK HEALTH CENTRE,20369441,"3,290.17 "
Department of Health,NHS Sheffield CCG,31/01/2018,C&M-PMS Out of Hours Opt Outs,PRC DELEGATED CO-COMMISSIONING,PARK HEALTH CENTRE,20369441,83.19 
Department of Health,NHS Sheffield CCG,31/01/2018,C&M-PMS PCO Other,PRC DELEGATED CO-COMMISSIONING,PARK HEALTH CENTRE,20369441,452.60 
Department of Health,NHS Sheffield CCG,31/01/2018,C&M-PMS Prem Notional Rent,PRC DELEGATED CO-COMMISSIONING,PARK HEALTH CENTRE,20369441,"6,000.00 "
Department of Health,NHS Sheffield CCG,31/01/2018,C&M-PMS QOF Aspiration,PRC DELEGATED CO-COMMISSIONING,PARK HEALTH CENTRE,20369441,"4,293.17 "
Department of Health,NHS Sheffield CCG,31/01/2018,C&M-PMS Contract Value,PRC DELEGATED CO-COMMISSIONING,PITSMOOR SURGERY,20369443,"76,031.60 "
Department of Health,NHS Sheffield CCG,31/01/2018,C&M-PMS DES Extended Hours Access,PRC DELEGATED CO-COMMISSIONING,PITSMOOR SURGERY,20369443,"4,493.98 "
Department of Health,NHS Sheffield CCG,31/01/2018,C&M-PMS Out of Hours Opt Outs,PRC DELEGATED CO-COMMISSIONING,PITSMOOR SURGERY,20369443,66.72 
Department of Health,NHS Sheffield CCG,31/01/2018,C&M-PMS Prem Notional Rent,PRC DELEGATED CO-COMMISSIONING,PITSMOOR SURGERY,20369443,"9,650.00 "
Department of Health,NHS Sheffield CCG,31/01/2018,C&M-PMS QOF Aspiration,PRC DELEGATED CO-COMMISSIONING,PITSMOOR SURGERY,20369443,"7,463.31 "
Department of Health,NHS Sheffield CCG,31/01/2018,C&M-PMS Contract Value,PRC DELEGATED CO-COMMISSIONING,PORTER BROOK MEDICAL CENTRE,20369444,"(7,057.03)"
Department of Health,NHS Sheffield CCG,31/01/2018,C&M-PMS DES Extended Hours Access,PRC DELEGATED CO-COMMISSIONING,PORTER BROOK MEDICAL CENTRE,20369444,(330.89)
Department of Health,NHS Sheffield CCG,31/01/2018,C&M-PMS GP Statutory Levy,PRC DELEGATED CO-COMMISSIONING,PORTER BROOK MEDICAL CENTRE,20369444,(876.69)
Department of Health,NHS Sheffield CCG,31/01/2018,C&M-PMS Out of Hours Opt Outs,PRC DELEGATED CO-COMMISSIONING,PORTER BROOK MEDICAL CENTRE,20369444,"(7,926.46)"
Department of Health,NHS Sheffield CCG,31/01/2018,C&M-PMS Voluntary Levy,PRC DELEGATED CO-COMMISSIONING,PORTER BROOK MEDICAL CENTRE,20369444,(146.12)
Department of Health,NHS Sheffield CCG,31/01/2018,C&M-PMS Contract Value,PRC DELEGATED CO-COMMISSIONING,PORTER BROOK MEDICAL CENTRE,20369445,"167,759.15 "
Department of Health,NHS Sheffield CCG,31/01/2018,C&M-PMS DES Extended Hours Access,PRC DELEGATED CO-COMMISSIONING,PORTER BROOK MEDICAL CENTRE,20369445,"13,620.63 "
Department of Health,NHS Sheffield CCG,31/01/2018,C&M-PMS Funding Differential Review,PRC DELEGATED CO-COMMISSIONING,PORTER BROOK MEDICAL CENTRE,20369445,"5,112.08 "
Department of Health,NHS Sheffield CCG,31/01/2018,C&M-PMS Out of Hours Opt Outs,PRC DELEGATED CO-COMMISSIONING,PORTER BROOK MEDICAL CENTRE,20369445,352.08 
Department of Health,NHS Sheffield CCG,31/01/2018,C&M-PMS PCO Other,PRC DELEGATED CO-COMMISSIONING,PORTER BROOK MEDICAL CENTRE,20369445,591.80 
Department of Health,NHS Sheffield CCG,31/01/2018,C&M-PMS Prem Actual Rent,PRC DELEGATED CO-COMMISSIONING,PORTER BROOK MEDICAL CENTRE,20369445,"1,333.33 "
Department of Health,NHS Sheffield CCG,31/01/2018,C&M-PMS Prem Notional Rent,PRC DELEGATED CO-COMMISSIONING,PORTER BROOK MEDICAL CENTRE,20369445,"9,701.20 "
Department of Health,NHS Sheffield CCG,31/01/2018,C&M-PMS Prem Rates,PRC DELEGATED CO-COMMISSIONING,PORTER BROOK MEDICAL CENTRE,20369445,"1,956.00 "
Department of Health,NHS Sheffield CCG,31/01/2018,C&M-PMS Prem Water Rates,PRC DELEGATED CO-COMMISSIONING,PORTER BROOK MEDICAL CENTRE,20369445,739.92 
Department of Health,NHS Sheffield CCG,31/01/2018,C&M-PMS QOF Aspiration,PRC DELEGATED CO-COMMISSIONING,PORTER BROOK MEDICAL CENTRE,20369445,"8,899.04 "
Department of Health,NHS Sheffield CCG,31/01/2018,C&M-GMS LES Equitable Funding,LOCAL ENHANCED SERVICES,PORTER BROOK MEDICAL CENTRE,20485439,"26,665.00 "
Department of Health,NHS Sheffield CCG,31/01/2018,Clinical&Medical-Commercial Sector,PATIENT TRANSPORT,PREMIER CARE DIRECT LTD,20426035,"91,807.22 "
Department of Health,NHS Sheffield CCG,31/01/2018,Clinical&Medical-Commercial Sector,PATIENT TRANSPORT,PREMIER CARE DIRECT LTD,20513727,"91,807.22 "
Department of Health,NHS Sheffield CCG,31/01/2018,C&M-GMS LES Basket of Procedures,LOCAL ENHANCED SERVICES,PRIMARY CARE SHEFFIELD LTD,20312958,"26,430.00 "
Department of Health,NHS Sheffield CCG,31/01/2018,C&M-APMS DES Extended Hours Access,GP FORWARD VIEW,PRIMARY CARE SHEFFIELD LTD,20469455,"289,935.16 "
Department of Health,NHS Sheffield CCG,31/01/2018,C&M-PMS Contract Value,PRC DELEGATED CO-COMMISSIONING,RICHMOND MEDICAL CENTRE,20369447,"62,536.08 "
Department of Health,NHS Sheffield CCG,31/01/2018,C&M-PMS DES Extended Hours Access,PRC DELEGATED CO-COMMISSIONING,RICHMOND MEDICAL CENTRE,20369447,"4,047.00 "
Department of Health,NHS Sheffield CCG,31/01/2018,C&M-PMS Funding Differential Review,PRC DELEGATED CO-COMMISSIONING,RICHMOND MEDICAL CENTRE,20369447,"1,802.33 "
Department of Health,NHS Sheffield CCG,31/01/2018,C&M-PMS PCO Other,PRC DELEGATED CO-COMMISSIONING,RICHMOND MEDICAL CENTRE,20369447,452.60 
Department of Health,NHS Sheffield CCG,31/01/2018,C&M-PMS Prem Notional Rent,PRC DELEGATED CO-COMMISSIONING,RICHMOND MEDICAL CENTRE,20369447,"4,700.00 "
Department of Health,NHS Sheffield CCG,31/01/2018,C&M-PMS Prem Rates,PRC DELEGATED CO-COMMISSIONING,RICHMOND MEDICAL CENTRE,20369447,"1,139.00 "
Department of Health,NHS Sheffield CCG,31/01/2018,C&M-PMS Prem Water Rates,PRC DELEGATED CO-COMMISSIONING,RICHMOND MEDICAL CENTRE,20369447,865.37 
Department of Health,NHS Sheffield CCG,31/01/2018,C&M-PMS QOF Aspiration,PRC DELEGATED CO-COMMISSIONING,RICHMOND MEDICAL CENTRE,20369447,"7,754.77 "
Department of Health,NHS Sheffield CCG,31/01/2018,Cont Care-Funded Nursing Care Allow,FUNDED NURSING CARE,ROSEBERRY CARE CENTRES,20436559,"35,646.00 "
Department of Health,NHS Sheffield CCG,31/01/2018,Cont Care-Physical Disab (<65),CHC ADULT FULLY FUNDED,ROSEBERRY CARE CENTRES,20439980,"25,449.55 "
Department of Health,NHS Sheffield CCG,31/01/2018,Hlthcre-Foundation Trsts,CLINICAL LEADS,ROTHERHAM DONCASTER & SOUTH HUMBER MENTAL HEALTH NHS FOUNDATION TRUST,20596726,"57,000.00 "
Department of Health,NHS Sheffield CCG,31/01/2018,Cont Care-Learning Disab(65+),CHC ADULT FULLY FUNDED,ROTHERHAM METROPOLITAN BOROUGH COUNCIL,20597326,"71,851.77 "
Department of Health,NHS Sheffield CCG,31/01/2018,Hcare Srv Rec Fdtn Trust-Contract Baseline,ACUTE COMMISSIONING,ROTHERHAM NHS FOUNDATION TRUST,20303235,"429,401.00 "
Department of Health,NHS Sheffield CCG,31/01/2018,C&M-PMS Contract Value,PRC DELEGATED CO-COMMISSIONING,RUSTLINGS ROAD MEDICAL CENTRE,20369451,"26,762.24 "
Department of Health,NHS Sheffield CCG,31/01/2018,C&M-PMS Funding Differential Review,PRC DELEGATED CO-COMMISSIONING,RUSTLINGS ROAD MEDICAL CENTRE,20369451,"1,235.92 "
Department of Health,NHS Sheffield CCG,31/01/2018,C&M-PMS Out of Hours Opt Outs,PRC DELEGATED CO-COMMISSIONING,RUSTLINGS ROAD MEDICAL CENTRE,20369451,14.54 
Department of Health,NHS Sheffield CCG,31/01/2018,C&M-PMS PCO Other,PRC DELEGATED CO-COMMISSIONING,RUSTLINGS ROAD MEDICAL CENTRE,20369451,384.50 
Department of Health,NHS Sheffield CCG,31/01/2018,C&M-PMS Prem Notional Rent,PRC DELEGATED CO-COMMISSIONING,RUSTLINGS ROAD MEDICAL CENTRE,20369451,"1,167.92 "
Department of Health,NHS Sheffield CCG,31/01/2018,C&M-PMS QOF Aspiration,PRC DELEGATED CO-COMMISSIONING,RUSTLINGS ROAD MEDICAL CENTRE,20369451,"2,481.56 "
Department of Health,NHS Sheffield CCG,31/01/2018,Cont Care-Physical Disab (<65),CHC ADULT FULLY FUNDED,SEVEN HILLS NURSING HOME,20439757,"32,154.36 "
Department of Health,NHS Sheffield CCG,31/01/2018,C&M-GMS Cost of Drugs -Prescribing,LOCAL ENHANCED SERVICES,SHARROW LANE MEDICAL CENTRE,20626166,998.16 
Department of Health,NHS Sheffield CCG,31/01/2018,C&M-GMS Global Sum,PRC DELEGATED CO-COMMISSIONING,SHARROW LANE MEDICAL CENTRE,20626166,"22,033.12 "
Department of Health,NHS Sheffield CCG,31/01/2018,C&M-GMS MPIG Correction Factor,PRC DELEGATED CO-COMMISSIONING,SHARROW LANE MEDICAL CENTRE,20626166,"2,940.48 "
Department of Health,NHS Sheffield CCG,31/01/2018,C&M-GMS PCO Other,PRC DELEGATED CO-COMMISSIONING,SHARROW LANE MEDICAL CENTRE,20626166,384.50 
Department of Health,NHS Sheffield CCG,31/01/2018,C&M-GMS Prem Notional Rent,PRC DELEGATED CO-COMMISSIONING,SHARROW LANE MEDICAL CENTRE,20626166,"2,658.33 "
Department of Health,NHS Sheffield CCG,31/01/2018,C&M-GMS Prem Rates,PRC DELEGATED CO-COMMISSIONING,SHARROW LANE MEDICAL CENTRE,20626166,467.00 
Department of Health,NHS Sheffield CCG,31/01/2018,C&M-GMS Prem Water Rates,PRC DELEGATED CO-COMMISSIONING,SHARROW LANE MEDICAL CENTRE,20626166,94.30 
Department of Health,NHS Sheffield CCG,31/01/2018,C&M-GMS Prof Fees Prescribing,PRC DELEGATED CO-COMMISSIONING,SHARROW LANE MEDICAL CENTRE,20626166,181.14 
Department of Health,NHS Sheffield CCG,31/01/2018,C&M-GMS QOF Aspiration,PRC DELEGATED CO-COMMISSIONING,SHARROW LANE MEDICAL CENTRE,20626166,"2,727.76 "
Department of Health,NHS Sheffield CCG,31/01/2018,Hcare Srv Rec Fdtn Trust-CQUIN,ACUTE CHILDRENS SERVICES,SHEFFIELD CHILDRENS NHS FOUNDATION TRUST,20289840,"32,706.00 "
Department of Health,NHS Sheffield CCG,31/01/2018,Hcare Srv Rec Fdtn Trust-CQUIN,COMMUNITY SERVICES,SHEFFIELD CHILDRENS NHS FOUNDATION TRUST,20289840,"3,728.00 "
Department of Health,NHS Sheffield CCG,31/01/2018,Hcare Srv Rec Fdtn Trust-Contract Baseline,ACUTE CHILDRENS SERVICES,SHEFFIELD CHILDRENS NHS FOUNDATION TRUST,20289840,"235,977.00 "
Department of Health,NHS Sheffield CCG,31/01/2018,Hcare Srv Rec Fdtn Trust-Contract Baseline,CHILD AND ADOLESCENT MENTAL HEALTH,SHEFFIELD CHILDRENS NHS FOUNDATION TRUST,20289840,"367,086.00 "
Department of Health,NHS Sheffield CCG,31/01/2018,Hcare Srv Rec Fdtn Trust-Contract Baseline,COMMUNITY SERVICES,SHEFFIELD CHILDRENS NHS FOUNDATION TRUST,20289840,"298,241.00 "
Department of Health,NHS Sheffield CCG,31/01/2018,Hcare Srv Rec Fdtn Trust-Contract Baseline,HIGH COST DRUGS,SHEFFIELD CHILDRENS NHS FOUNDATION TRUST,20289840,"40,649.00 "
Department of Health,NHS Sheffield CCG,31/01/2018,Hcare Srv Rec Fdtn Trust-Contract Baseline,MENTAL HEALTH CONTRACTS,SHEFFIELD CHILDRENS NHS FOUNDATION TRUST,20289840,"5,277.00 "
Department of Health,NHS Sheffield CCG,31/01/2018,Hcare Srv Rec Fdtn Trust-Contract Baseline,PLANNED CARE,SHEFFIELD CHILDRENS NHS FOUNDATION TRUST,20289840,"965,735.00 "
Department of Health,NHS Sheffield CCG,31/01/2018,Hcare Srv Rec Fdtn Trust-Contract Baseline,SAFEGUARDING,SHEFFIELD CHILDRENS NHS FOUNDATION TRUST,20289840,"29,800.00 "
Department of Health,NHS Sheffield CCG,31/01/2018,Hcare Srv Rec Fdtn Trust-Contract Baseline,URGENT CARE,SHEFFIELD CHILDRENS NHS FOUNDATION TRUST,20289840,"988,358.00 "
Department of Health,NHS Sheffield CCG,31/01/2018,Hcare Srv Rec Fdtn Trust-CQUIN,ACUTE CHILDRENS SERVICES,SHEFFIELD CHILDRENS NHS FOUNDATION TRUST,20303272,"39,245.00 "
Department of Health,NHS Sheffield CCG,31/01/2018,Hcare Srv Rec Fdtn Trust-CQUIN,COMMUNITY SERVICES,SHEFFIELD CHILDRENS NHS FOUNDATION TRUST,20303272,"3,728.00 "
Department of Health,NHS Sheffield CCG,31/01/2018,Hcare Srv Rec Fdtn Trust-Contract Baseline,ACUTE CHILDRENS SERVICES,SHEFFIELD CHILDRENS NHS FOUNDATION TRUST,20303272,"22,854.01 "
Department of Health,NHS Sheffield CCG,31/01/2018,Hcare Srv Rec Fdtn Trust-Contract Baseline,HIGH COST DRUGS,SHEFFIELD CHILDRENS NHS FOUNDATION TRUST,20303272,"16,048.00 "
Department of Health,NHS Sheffield CCG,31/01/2018,Hcare Srv Rec Fdtn Trust-Contract Baseline,MENTAL HEALTH CONTRACTS,SHEFFIELD CHILDRENS NHS FOUNDATION TRUST,20303272,"(2,282.00)"
Department of Health,NHS Sheffield CCG,31/01/2018,Hcare Srv Rec Fdtn Trust-Contract Baseline,PLANNED CARE,SHEFFIELD CHILDRENS NHS FOUNDATION TRUST,20303272,"69,541.00 "
Department of Health,NHS Sheffield CCG,31/01/2018,Hcare Srv Rec Fdtn Trust-Contract Baseline,URGENT CARE,SHEFFIELD CHILDRENS NHS FOUNDATION TRUST,20303272,"163,325.00 "
Department of Health,NHS Sheffield CCG,31/01/2018,Hcare Srv Rec Fdtn Trust-CQUIN,ACUTE CHILDRENS SERVICES,SHEFFIELD CHILDRENS NHS FOUNDATION TRUST,20571854,"33,243.00 "
Department of Health,NHS Sheffield CCG,31/01/2018,Hcare Srv Rec Fdtn Trust-Contract Baseline,ACUTE CHILDRENS SERVICES,SHEFFIELD CHILDRENS NHS FOUNDATION TRUST,20571854,"14,665.64 "
Department of Health,NHS Sheffield CCG,31/01/2018,Hcare Srv Rec Fdtn Trust-Contract Baseline,COMMUNITY SERVICES,SHEFFIELD CHILDRENS NHS FOUNDATION TRUST,20571854,"3,728.00 "
Department of Health,NHS Sheffield CCG,31/01/2018,Hcare Srv Rec Fdtn Trust-Contract Baseline,HIGH COST DRUGS,SHEFFIELD CHILDRENS NHS FOUNDATION TRUST,20571854,"14,077.00 "
Department of Health,NHS Sheffield CCG,31/01/2018,Hcare Srv Rec Fdtn Trust-Contract Baseline,MENTAL HEALTH CONTRACTS,SHEFFIELD CHILDRENS NHS FOUNDATION TRUST,20571854,"(3,099.00)"
Department of Health,NHS Sheffield CCG,31/01/2018,Hcare Srv Rec Fdtn Trust-Contract Baseline,PLANNED CARE,SHEFFIELD CHILDRENS NHS FOUNDATION TRUST,20571854,"(159,319.00)"
Department of Health,NHS Sheffield CCG,31/01/2018,Hcare Srv Rec Fdtn Trust-Contract Baseline,URGENT CARE,SHEFFIELD CHILDRENS NHS FOUNDATION TRUST,20571854,"161,118.00 "
Department of Health,NHS Sheffield CCG,31/01/2018,Hcare Srv Rec Fdtn Trust-Contract Baseline,ACUTE CHILDRENS SERVICES,SHEFFIELD CHILDRENS NHS FOUNDATION TRUST,20702775,"90,123.00 "
Department of Health,NHS Sheffield CCG,31/01/2018,Hcare Srv Rec Fdtn Trust-Contract Baseline,ACUTE CHILDRENS SERVICES,SHEFFIELD CHILDRENS NHS FOUNDATION TRUST,20702791,"(90,123.00)"
Department of Health,NHS Sheffield CCG,31/01/2018,Clinical&Medical-Othe Public Sector,ACUTE CHILDRENS SERVICES,SHEFFIELD CITY COUNCIL,20289985,"31,376.61 "
Department of Health,NHS Sheffield CCG,31/01/2018,Cont Care- Prior Year Payments,Children's Continuing Care,SHEFFIELD CITY COUNCIL,20333255,"39,853.91 "
Department of Health,NHS Sheffield CCG,31/01/2018,Clinical&Medical-Othe Public Sector,COMMUNITY SERVICES,SHEFFIELD CITY COUNCIL,20426155,"21,831.00 "
Department of Health,NHS Sheffield CCG,31/01/2018,Clinical&Medical-Othe Public Sector,MENTAL HEALTH SERVICES - COLLABORATIVE COMMISSIONING,SHEFFIELD CITY COUNCIL,20426155,"16,919.00 "
Department of Health,NHS Sheffield CCG,31/01/2018,Clinical&Medical-Othe Public Sector,REABLEMENT,SHEFFIELD CITY COUNCIL,20426155,"160,417.00 "
Department of Health,NHS Sheffield CCG,31/01/2018,Clinical&Medical-Othe Public Sector,SAFEGUARDING,SHEFFIELD CITY COUNCIL,20426155,"15,324.00 "
Department of Health,NHS Sheffield CCG,31/01/2018,Soc Care-Joint H&C Teams/Working,INTERMEDIATE CARE,SHEFFIELD CITY COUNCIL,20426155,"88,060.00 "
Department of Health,NHS Sheffield CCG,31/01/2018,Soc Care-Learn Disab Servs,LEARNING DIFFICULTIES,SHEFFIELD CITY COUNCIL,20426155,"166,667.00 "
Department of Health,NHS Sheffield CCG,31/01/2018,Soc Care-Other Soc Care,COMMUNITY SERVICES,SHEFFIELD CITY COUNCIL,20426155,"467,750.00 "
Department of Health,NHS Sheffield CCG,31/01/2018,Soc Care-Re-ablement services,REABLEMENT,SHEFFIELD CITY COUNCIL,20426155,"63,387.00 "
Department of Health,NHS Sheffield CCG,31/01/2018,Soc Care-Support Prim Care,COMMUNITY SERVICES,SHEFFIELD CITY COUNCIL,20426155,"55,000.00 "
Department of Health,NHS Sheffield CCG,31/01/2018,Services From Local Authorities,MENTAL HEALTH SERVICES - COLLABORATIVE COMMISSIONING,SHEFFIELD CITY COUNCIL,20504716,"29,642.01 "
Department of Health,NHS Sheffield CCG,31/01/2018,Cont Care-Physical Disab (65+),CHC ADULT FULLY FUNDED,SHEFFIELD CITY COUNCIL,20571990,"882,039.66 "
Department of Health,NHS Sheffield CCG,31/01/2018,Clinical&Medical-Othe Public Sector,COMMUNITY SERVICES,SHEFFIELD CITY COUNCIL,20598913,"21,831.00 "
Department of Health,NHS Sheffield CCG,31/01/2018,Clinical&Medical-Othe Public Sector,MENTAL HEALTH SERVICES - COLLABORATIVE COMMISSIONING,SHEFFIELD CITY COUNCIL,20598913,"16,919.00 "
Department of Health,NHS Sheffield CCG,31/01/2018,Clinical&Medical-Othe Public Sector,REABLEMENT,SHEFFIELD CITY COUNCIL,20598913,"160,417.00 "
Department of Health,NHS Sheffield CCG,31/01/2018,Clinical&Medical-Othe Public Sector,SAFEGUARDING,SHEFFIELD CITY COUNCIL,20598913,"15,324.00 "
Department of Health,NHS Sheffield CCG,31/01/2018,Soc Care-Joint H&C Teams/Working,INTERMEDIATE CARE,SHEFFIELD CITY COUNCIL,20598913,"88,060.00 "
Department of Health,NHS Sheffield CCG,31/01/2018,Soc Care-Learn Disab Servs,LEARNING DIFFICULTIES,SHEFFIELD CITY COUNCIL,20598913,"166,667.00 "
Department of Health,NHS Sheffield CCG,31/01/2018,Soc Care-Other Soc Care,COMMUNITY SERVICES,SHEFFIELD CITY COUNCIL,20598913,"1,467,750.00 "
Department of Health,NHS Sheffield CCG,31/01/2018,Soc Care-Re-ablement services,REABLEMENT,SHEFFIELD CITY COUNCIL,20598913,"63,387.00 "
Department of Health,NHS Sheffield CCG,31/01/2018,Soc Care-Support Prim Care,COMMUNITY SERVICES,SHEFFIELD CITY COUNCIL,20598913,"55,000.00 "
Department of Health,NHS Sheffield CCG,31/01/2018,Health Promotion,COMMISSIONING,SHEFFIELD CITY COUNCIL,20702807,"52,972.00 "
Department of Health,NHS Sheffield CCG,31/01/2018,Cont Care-Foundation Trust,CHC ADULT FULLY FUNDED,SHEFFIELD HEALTH & SOCIAL CARE NHS FOUNDATION TRUST,20289846,"249,977.83 "
Department of Health,NHS Sheffield CCG,31/01/2018,Cont Care-Foundation Trust,CHC ADULT FULLY FUNDED,SHEFFIELD HEALTH & SOCIAL CARE NHS FOUNDATION TRUST,20290133,"(249,977.83)"
Department of Health,NHS Sheffield CCG,31/01/2018,C&M-APMS Contract Value,PRC DELEGATED CO-COMMISSIONING,SHEFFIELD HEALTH & SOCIAL CARE NHS FOUNDATION TRUST,20375327,"119,696.37 "
Department of Health,NHS Sheffield CCG,31/01/2018,C&M-APMS DES Extended Hours Access,PRC DELEGATED CO-COMMISSIONING,SHEFFIELD HEALTH & SOCIAL CARE NHS FOUNDATION TRUST,20375327,"7,777.65 "
Department of Health,NHS Sheffield CCG,31/01/2018,C&M-APMS OOH Opt Outs,PRC DELEGATED CO-COMMISSIONING,SHEFFIELD HEALTH & SOCIAL CARE NHS FOUNDATION TRUST,20375327,27.65 
Department of Health,NHS Sheffield CCG,31/01/2018,C&M-APMS Prem Actual Rent,PRC DELEGATED CO-COMMISSIONING,SHEFFIELD HEALTH & SOCIAL CARE NHS FOUNDATION TRUST,20375327,"5,169.68 "
Department of Health,NHS Sheffield CCG,31/01/2018,C&M-APMS Prem Healthcentre Rent,PRC DELEGATED CO-COMMISSIONING,SHEFFIELD HEALTH & SOCIAL CARE NHS FOUNDATION TRUST,20375327,"60,362.95 "
Department of Health,NHS Sheffield CCG,31/01/2018,C&M-APMS Prem Notional Rent,PRC DELEGATED CO-COMMISSIONING,SHEFFIELD HEALTH & SOCIAL CARE NHS FOUNDATION TRUST,20375327,"2,804.17 "
Department of Health,NHS Sheffield CCG,31/01/2018,C&M-PMS QOF Aspiration,PRC DELEGATED CO-COMMISSIONING,SHEFFIELD HEALTH & SOCIAL CARE NHS FOUNDATION TRUST,20375327,"12,657.74 "
Department of Health,NHS Sheffield CCG,31/01/2018,C&M-APMS Contract Value,PRC DELEGATED CO-COMMISSIONING,SHEFFIELD HEALTH & SOCIAL CARE NHS FOUNDATION TRUST,20375329,"26,563.38 "
Department of Health,NHS Sheffield CCG,31/01/2018,C&M-APMS DES Extended Hours Access,PRC DELEGATED CO-COMMISSIONING,SHEFFIELD HEALTH & SOCIAL CARE NHS FOUNDATION TRUST,20375329,"2,150.80 "
Department of Health,NHS Sheffield CCG,31/01/2018,C&M-APMS OOH Opt Outs,PRC DELEGATED CO-COMMISSIONING,SHEFFIELD HEALTH & SOCIAL CARE NHS FOUNDATION TRUST,20375329,15.42 
Department of Health,NHS Sheffield CCG,31/01/2018,C&M-PMS QOF Aspiration,PRC DELEGATED CO-COMMISSIONING,SHEFFIELD HEALTH & SOCIAL CARE NHS FOUNDATION TRUST,20375329,"1,256.00 "
Department of Health,NHS Sheffield CCG,31/01/2018,Hcare Srv Rec Fdtn Trust-Contract Baseline,MENTAL HEALTH CONTRACTS,SHEFFIELD HEALTH & SOCIAL CARE NHS FOUNDATION TRUST,20424657,"360,805.40 "
Department of Health,NHS Sheffield CCG,31/01/2018,C&M-APMS LES Translation Fees,LOCAL ENHANCED SERVICES,SHEFFIELD HEALTH & SOCIAL CARE NHS FOUNDATION TRUST,20485526,"57,500.00 "
Department of Health,NHS Sheffield CCG,31/01/2018,Cont Care-NHSFT-Adult 100% Funded,CHC ADULT FULLY FUNDED,SHEFFIELD HEALTH & SOCIAL CARE NHS FOUNDATION TRUST,20597167,"236,256.12 "
Department of Health,NHS Sheffield CCG,31/01/2018,Clinical&Medical-Serv Recd-F Trsts,Learning Difficulties - S117,SHEFFIELD HEALTH & SOCIAL CARE NHS FOUNDATION TRUST,20637222,"15,510.04 "
Department of Health,NHS Sheffield CCG,31/01/2018,Cont Care-NHSFT-Adult LD (<65),ADULT JOINT FUNDED CONTINUING CARE,SHEFFIELD HEALTH & SOCIAL CARE NHS FOUNDATION TRUST,20637222,"19,756.52 "
Department of Health,NHS Sheffield CCG,31/01/2018,Cont Care-NHSFT-Adult LD (<65),CHC ADULT FULLY FUNDED,SHEFFIELD HEALTH & SOCIAL CARE NHS FOUNDATION TRUST,20637222,"31,711.40 "
Department of Health,NHS Sheffield CCG,31/01/2018,Clinical&Medical-Serv Recd-F Trsts,Learning Difficulties - S117,SHEFFIELD HEALTH & SOCIAL CARE NHS FOUNDATION TRUST,20637239,"15,510.04 "
Department of Health,NHS Sheffield CCG,31/01/2018,Cont Care-NHSFT-Adult LD (<65),ADULT JOINT FUNDED CONTINUING CARE,SHEFFIELD HEALTH & SOCIAL CARE NHS FOUNDATION TRUST,20637239,"15,811.48 "
Department of Health,NHS Sheffield CCG,31/01/2018,Cont Care-NHSFT-Adult LD (<65),CHC ADULT FULLY FUNDED,SHEFFIELD HEALTH & SOCIAL CARE NHS FOUNDATION TRUST,20637239,"31,711.40 "
Department of Health,NHS Sheffield CCG,31/01/2018,Hcare Srv Rec Fdtn Trust-Contract Baseline,MENTAL HEALTH CONTRACTS,SHEFFIELD HEALTH & SOCIAL CARE NHS FOUNDATION TRUST,20708060,"6,013,427.33 "
Department of Health,NHS Sheffield CCG,31/01/2018,Hcare Srv Rec Fdtn Trust-Contract Baseline,ACUTE COMMISSIONING,SHEFFIELD TEACHING HOSPITALS NHS FOUNDATION TRUST,20290121,"3,826,133.00 "
Department of Health,NHS Sheffield CCG,31/01/2018,Hcare Srv Rec Fdtn Trust-Contract Baseline,ACUTE COMMISSIONING,SHEFFIELD TEACHING HOSPITALS NHS FOUNDATION TRUST,20290126,"26,312,884.00 "
Department of Health,NHS Sheffield CCG,31/01/2018,Hcare Srv Rec Fdtn Trust-Contract Baseline,ACUTE COMMISSIONING,SHEFFIELD TEACHING HOSPITALS NHS FOUNDATION TRUST,20290128,"1,101,688.00 "
Department of Health,NHS Sheffield CCG,31/01/2018,Hcare Srv Rec Fdtn Trust-Contract Baseline,ACUTE COMMISSIONING,SHEFFIELD TEACHING HOSPITALS NHS FOUNDATION TRUST,20290129,"316,655.00 "
Department of Health,NHS Sheffield CCG,31/01/2018,Seconded-Basic Sal-Staff fm oth org,BEREAVEMENT SERVICE,SHEFFIELD TEACHING HOSPITALS NHS FOUNDATION TRUST,20333731,"49,200.00 "
Department of Health,NHS Sheffield CCG,31/01/2018,C&M-GMS LES CCGLcltyExec&Clin Leads,LOCAL ENHANCED SERVICES,SHEFFIELD TEACHING HOSPITALS NHS FOUNDATION TRUST,20504719,"30,000.00 "
Department of Health,NHS Sheffield CCG,31/01/2018,PREPYMT OVERSEAS NON EEA PATIENTS,OVERSEAS NON EEA PATIENTS,SHEFFIELD TEACHING HOSPITALS NHS FOUNDATION TRUST,20527122,"28,741.50 "
Department of Health,NHS Sheffield CCG,31/01/2018,Hcare Srv Rec Fdtn Trust-Contract Baseline,ACUTE COMMISSIONING,SHEFFIELD TEACHING HOSPITALS NHS FOUNDATION TRUST,20527126,"1,648,676.00 "
Department of Health,NHS Sheffield CCG,31/01/2018,C&M-GMS Cost of Drugs -Prescribing,LOCAL ENHANCED SERVICES,SHIREGREEN MEDICAL CENTRE,20626174,"11,985.07 "
Department of Health,NHS Sheffield CCG,31/01/2018,C&M-GMS Global Sum,PRC DELEGATED CO-COMMISSIONING,SHIREGREEN MEDICAL CENTRE,20626174,"55,776.63 "
Department of Health,NHS Sheffield CCG,31/01/2018,C&M-GMS MPIG Correction Factor,PRC DELEGATED CO-COMMISSIONING,SHIREGREEN MEDICAL CENTRE,20626174,680.53 
Department of Health,NHS Sheffield CCG,31/01/2018,C&M-GMS PCO Other,PRC DELEGATED CO-COMMISSIONING,SHIREGREEN MEDICAL CENTRE,20626174,452.60 
Department of Health,NHS Sheffield CCG,31/01/2018,C&M-GMS Prem Cost Rent,PRC DELEGATED CO-COMMISSIONING,SHIREGREEN MEDICAL CENTRE,20626174,"1,792.33 "
Department of Health,NHS Sheffield CCG,31/01/2018,C&M-GMS Prem Notional Rent,PRC DELEGATED CO-COMMISSIONING,SHIREGREEN MEDICAL CENTRE,20626174,"5,375.00 "
Department of Health,NHS Sheffield CCG,31/01/2018,C&M-GMS Prem Rates,PRC DELEGATED CO-COMMISSIONING,SHIREGREEN MEDICAL CENTRE,20626174,"1,877.00 "
Department of Health,NHS Sheffield CCG,31/01/2018,C&M-GMS Prof Fees Prescribing,PRC DELEGATED CO-COMMISSIONING,SHIREGREEN MEDICAL CENTRE,20626174,"2,224.27 "
Department of Health,NHS Sheffield CCG,31/01/2018,C&M-GMS QOF Aspiration,PRC DELEGATED CO-COMMISSIONING,SHIREGREEN MEDICAL CENTRE,20626174,"6,614.14 "
Department of Health,NHS Sheffield CCG,31/01/2018,C&M-PMS Contract Value,PRC DELEGATED CO-COMMISSIONING,SLOAN MEDICAL CENTRE,20369453,"90,886.23 "
Department of Health,NHS Sheffield CCG,31/01/2018,C&M-PMS DES Extended Hours Access,PRC DELEGATED CO-COMMISSIONING,SLOAN MEDICAL CENTRE,20369453,"6,070.50 "
Department of Health,NHS Sheffield CCG,31/01/2018,C&M-PMS Funding Differential Review,PRC DELEGATED CO-COMMISSIONING,SLOAN MEDICAL CENTRE,20369453,165.33 
Department of Health,NHS Sheffield CCG,31/01/2018,C&M-PMS Out of Hours Opt Outs,PRC DELEGATED CO-COMMISSIONING,SLOAN MEDICAL CENTRE,20369453,34.36 
Department of Health,NHS Sheffield CCG,31/01/2018,C&M-PMS PCO Other,PRC DELEGATED CO-COMMISSIONING,SLOAN MEDICAL CENTRE,20369453,523.70 
Department of Health,NHS Sheffield CCG,31/01/2018,C&M-PMS Prem Actual Rent,PRC DELEGATED CO-COMMISSIONING,SLOAN MEDICAL CENTRE,20369453,"15,535.83 "
Department of Health,NHS Sheffield CCG,31/01/2018,C&M-PMS Prem Notional Rent,PRC DELEGATED CO-COMMISSIONING,SLOAN MEDICAL CENTRE,20369453,608.33 
Department of Health,NHS Sheffield CCG,31/01/2018,C&M-PMS Prem Rates,PRC DELEGATED CO-COMMISSIONING,SLOAN MEDICAL CENTRE,20369453,"2,990.00 "
Department of Health,NHS Sheffield CCG,31/01/2018,C&M-PMS QOF Aspiration,PRC DELEGATED CO-COMMISSIONING,SLOAN MEDICAL CENTRE,20369453,"10,663.96 "
Department of Health,NHS Sheffield CCG,31/01/2018,C&M-PMS Contract Value,PRC DELEGATED CO-COMMISSIONING,SOTHALL MEDICAL CENTRE,20369455,"69,389.43 "
Department of Health,NHS Sheffield CCG,31/01/2018,C&M-PMS DES Extended Hours Access,PRC DELEGATED CO-COMMISSIONING,SOTHALL MEDICAL CENTRE,20369455,"4,864.48 "
Department of Health,NHS Sheffield CCG,31/01/2018,C&M-PMS Funding Differential Review,PRC DELEGATED CO-COMMISSIONING,SOTHALL MEDICAL CENTRE,20369455,"3,463.83 "
Department of Health,NHS Sheffield CCG,31/01/2018,C&M-PMS Out of Hours Opt Outs,PRC DELEGATED CO-COMMISSIONING,SOTHALL MEDICAL CENTRE,20369455,41.29 
Department of Health,NHS Sheffield CCG,31/01/2018,C&M-PMS PCO Other,PRC DELEGATED CO-COMMISSIONING,SOTHALL MEDICAL CENTRE,20369455,523.70 
Department of Health,NHS Sheffield CCG,31/01/2018,C&M-PMS Prem Healthcentre Rent,PRC DELEGATED CO-COMMISSIONING,SOTHALL MEDICAL CENTRE,20369455,"2,953.43 "
Department of Health,NHS Sheffield CCG,31/01/2018,C&M-PMS Prem Notional Rent,PRC DELEGATED CO-COMMISSIONING,SOTHALL MEDICAL CENTRE,20369455,"5,116.67 "
Department of Health,NHS Sheffield CCG,31/01/2018,C&M-PMS Prem Rates,PRC DELEGATED CO-COMMISSIONING,SOTHALL MEDICAL CENTRE,20369455,"1,000.00 "
Department of Health,NHS Sheffield CCG,31/01/2018,C&M-PMS QOF Aspiration,PRC DELEGATED CO-COMMISSIONING,SOTHALL MEDICAL CENTRE,20369455,"8,821.42 "
Department of Health,NHS Sheffield CCG,31/01/2018,Cont Care- Adult 100% Fully Funded,CHC ADULT FULLY FUNDED,SOUTH YORKSHIRE HOUSING ASSOCIATION LTD,20303316,"103,949.00 "
Department of Health,NHS Sheffield CCG,31/01/2018,Clinical&Medical-Independent Sector,MENTAL HEALTH CONTRACTS,SOUTH YORKSHIRE HOUSING ASSOCIATION LTD,20312970,"34,435.00 "
Department of Health,NHS Sheffield CCG,31/01/2018,Cont Care- Adult 100% Fully Funded,CHC ADULT FULLY FUNDED,SOUTH YORKSHIRE HOUSING ASSOCIATION LTD,20333719,"25,500.00 "
Department of Health,NHS Sheffield CCG,31/01/2018,Cont Care-Physical Disab (<65),CHC ADULT FULLY FUNDED,SOUTH YORKSHIRE HOUSING ASSOCIATION LTD,20426177,"73,663.94 "
Department of Health,NHS Sheffield CCG,31/01/2018,C&M-PMS Contract Value,PRC DELEGATED CO-COMMISSIONING,SOUTHEY GREEN MEDICAL CENTRE,20369457,"25,573.59 "
Department of Health,NHS Sheffield CCG,31/01/2018,C&M-PMS DES Extended Hours Access,PRC DELEGATED CO-COMMISSIONING,SOUTHEY GREEN MEDICAL CENTRE,20369457,"1,402.20 "
Department of Health,NHS Sheffield CCG,31/01/2018,C&M-PMS Funding Differential Review,PRC DELEGATED CO-COMMISSIONING,SOUTHEY GREEN MEDICAL CENTRE,20369457,127.58 
Department of Health,NHS Sheffield CCG,31/01/2018,C&M-PMS Prem Notional Rent,PRC DELEGATED CO-COMMISSIONING,SOUTHEY GREEN MEDICAL CENTRE,20369457,"3,362.50 "
Department of Health,NHS Sheffield CCG,31/01/2018,C&M-PMS Prem Rates,PRC DELEGATED CO-COMMISSIONING,SOUTHEY GREEN MEDICAL CENTRE,20369457,"1,277.00 "
Department of Health,NHS Sheffield CCG,31/01/2018,C&M-PMS QOF Aspiration,PRC DELEGATED CO-COMMISSIONING,SOUTHEY GREEN MEDICAL CENTRE,20369457,"2,875.40 "
Department of Health,NHS Sheffield CCG,31/01/2018,C&M-GMS DES TPP QRISK,PRC DELEGATED CO-COMMISSIONING,STANNINGTON MEDICAL CENTRE,20650757,52.00 
Department of Health,NHS Sheffield CCG,31/01/2018,C&M-GMS Global Sum,PRC DELEGATED CO-COMMISSIONING,STANNINGTON MEDICAL CENTRE,20650757,"23,002.53 "
Department of Health,NHS Sheffield CCG,31/01/2018,C&M-GMS PCO Other,PRC DELEGATED CO-COMMISSIONING,STANNINGTON MEDICAL CENTRE,20650757,384.50 
Department of Health,NHS Sheffield CCG,31/01/2018,C&M-GMS Prem Notional Rent,PRC DELEGATED CO-COMMISSIONING,STANNINGTON MEDICAL CENTRE,20650757,"2,958.21 "
Department of Health,NHS Sheffield CCG,31/01/2018,C&M-GMS Prem Rates,PRC DELEGATED CO-COMMISSIONING,STANNINGTON MEDICAL CENTRE,20650757,482.00 
Department of Health,NHS Sheffield CCG,31/01/2018,C&M-GMS QOF Aspiration,PRC DELEGATED CO-COMMISSIONING,STANNINGTON MEDICAL CENTRE,20650757,"3,253.08 "
Department of Health,NHS Sheffield CCG,31/01/2018,C&M-GMS Cost of Drugs -Prescribing,LOCAL ENHANCED SERVICES,STONECROFT MEDICAL CENTRE,20626176,"2,267.26 "
Department of Health,NHS Sheffield CCG,31/01/2018,C&M-GMS Global Sum,PRC DELEGATED CO-COMMISSIONING,STONECROFT MEDICAL CENTRE,20626176,"30,200.86 "
Department of Health,NHS Sheffield CCG,31/01/2018,C&M-GMS MPIG Correction Factor,PRC DELEGATED CO-COMMISSIONING,STONECROFT MEDICAL CENTRE,20626176,927.38 
Department of Health,NHS Sheffield CCG,31/01/2018,C&M-GMS PCO Other,PRC DELEGATED CO-COMMISSIONING,STONECROFT MEDICAL CENTRE,20626176,384.50 
Department of Health,NHS Sheffield CCG,31/01/2018,C&M-GMS Prem Notional Rent,PRC DELEGATED CO-COMMISSIONING,STONECROFT MEDICAL CENTRE,20626176,"2,808.33 "
Department of Health,NHS Sheffield CCG,31/01/2018,C&M-GMS Prem Rates,PRC DELEGATED CO-COMMISSIONING,STONECROFT MEDICAL CENTRE,20626176,"1,083.00 "
Department of Health,NHS Sheffield CCG,31/01/2018,C&M-GMS Prof Fees Prescribing,PRC DELEGATED CO-COMMISSIONING,STONECROFT MEDICAL CENTRE,20626176,552.25 
Department of Health,NHS Sheffield CCG,31/01/2018,C&M-GMS QOF Aspiration,PRC DELEGATED CO-COMMISSIONING,STONECROFT MEDICAL CENTRE,20626176,"4,224.91 "
Department of Health,NHS Sheffield CCG,31/01/2018,Clinical&Medical-Independent Sector,MENTAL HEALTH CONTRACTS,SUSASH GB LTD T/A EAGLE HOUSE,20312969,"30,092.00 "
Department of Health,NHS Sheffield CCG,31/01/2018,C&M-GMS Cost of Drugs -Prescribing,LOCAL ENHANCED SERVICES,TOTLEY RISE MEDICAL CENTRE,20626179,"1,227.56 "
Department of Health,NHS Sheffield CCG,31/01/2018,C&M-GMS Global Sum,PRC DELEGATED CO-COMMISSIONING,TOTLEY RISE MEDICAL CENTRE,20626179,"22,509.30 "
Department of Health,NHS Sheffield CCG,31/01/2018,C&M-GMS MPIG Correction Factor,PRC DELEGATED CO-COMMISSIONING,TOTLEY RISE MEDICAL CENTRE,20626179,154.70 
Department of Health,NHS Sheffield CCG,31/01/2018,C&M-GMS PCO Other,PRC DELEGATED CO-COMMISSIONING,TOTLEY RISE MEDICAL CENTRE,20626179,384.50 
Department of Health,NHS Sheffield CCG,31/01/2018,C&M-GMS Prem Notional Rent,PRC DELEGATED CO-COMMISSIONING,TOTLEY RISE MEDICAL CENTRE,20626179,"1,491.67 "
Department of Health,NHS Sheffield CCG,31/01/2018,C&M-GMS Prem Rates,PRC DELEGATED CO-COMMISSIONING,TOTLEY RISE MEDICAL CENTRE,20626179,136.00 
Department of Health,NHS Sheffield CCG,31/01/2018,C&M-GMS Prof Fees Prescribing,PRC DELEGATED CO-COMMISSIONING,TOTLEY RISE MEDICAL CENTRE,20626179,278.33 
Department of Health,NHS Sheffield CCG,31/01/2018,C&M-GMS QOF Aspiration,PRC DELEGATED CO-COMMISSIONING,TOTLEY RISE MEDICAL CENTRE,20626179,"2,269.92 "
Department of Health,NHS Sheffield CCG,31/01/2018,C&M-GMS Cost of Drugs -Prescribing,LOCAL ENHANCED SERVICES,TRAMWAYS MEDICAL CENTRE,20650758,"3,767.78 "
Department of Health,NHS Sheffield CCG,31/01/2018,C&M-GMS Global Sum,PRC DELEGATED CO-COMMISSIONING,TRAMWAYS MEDICAL CENTRE,20650758,"58,443.62 "
Department of Health,NHS Sheffield CCG,31/01/2018,C&M-GMS PCO Locum Adop/Pat/Mat,PRC DELEGATED CO-COMMISSIONING,TRAMWAYS MEDICAL CENTRE,20650758,"5,590.00 "
Department of Health,NHS Sheffield CCG,31/01/2018,C&M-GMS PCO Other,PRC DELEGATED CO-COMMISSIONING,TRAMWAYS MEDICAL CENTRE,20650758,452.60 
Department of Health,NHS Sheffield CCG,31/01/2018,C&M-GMS Prem Cost Rent,PRC DELEGATED CO-COMMISSIONING,TRAMWAYS MEDICAL CENTRE,20650758,"4,012.75 "
Department of Health,NHS Sheffield CCG,31/01/2018,C&M-GMS Prem Rates,PRC DELEGATED CO-COMMISSIONING,TRAMWAYS MEDICAL CENTRE,20650758,889.00 
Department of Health,NHS Sheffield CCG,31/01/2018,C&M-GMS Prem Water Rates,PRC DELEGATED CO-COMMISSIONING,TRAMWAYS MEDICAL CENTRE,20650758,254.30 
Department of Health,NHS Sheffield CCG,31/01/2018,C&M-GMS Prof Fees Prescribing,PRC DELEGATED CO-COMMISSIONING,TRAMWAYS MEDICAL CENTRE,20650758,609.68 
Department of Health,NHS Sheffield CCG,31/01/2018,C&M-GMS QOF Aspiration,PRC DELEGATED CO-COMMISSIONING,TRAMWAYS MEDICAL CENTRE,20650758,"6,336.58 "
Department of Health,NHS Sheffield CCG,31/01/2018,Cont Care-Funded Nursing Care Allow,FUNDED NURSING CARE,ULTIMA CARE CENTRES (NO1) LTD,20440065,"32,028.90 "
Department of Health,NHS Sheffield CCG,31/01/2018,C&M-PMS Contract Value,PRC DELEGATED CO-COMMISSIONING,UNIVERSITY HEALTH SERVICE,20369461,"168,118.49 "
Department of Health,NHS Sheffield CCG,31/01/2018,C&M-PMS Out of Hours Opt Outs,PRC DELEGATED CO-COMMISSIONING,UNIVERSITY HEALTH SERVICE,20369461,507.65 
Department of Health,NHS Sheffield CCG,31/01/2018,C&M-PMS PCO Locum Adop/Pat/Mat,PRC DELEGATED CO-COMMISSIONING,UNIVERSITY HEALTH SERVICE,20369461,"16,291.63 "
Department of Health,NHS Sheffield CCG,31/01/2018,C&M-PMS Prem Notional Rent,PRC DELEGATED CO-COMMISSIONING,UNIVERSITY HEALTH SERVICE,20369461,"15,833.33 "
Department of Health,NHS Sheffield CCG,31/01/2018,C&M-PMS QOF Aspiration,PRC DELEGATED CO-COMMISSIONING,UNIVERSITY HEALTH SERVICE,20369461,"3,640.26 "
Department of Health,NHS Sheffield CCG,31/01/2018,C&M-GMS Cost of Drugs -Prescribing,LOCAL ENHANCED SERVICES,UPPERTHORPE MEDICAL CENTRE,20626183,"5,432.51 "
Department of Health,NHS Sheffield CCG,31/01/2018,C&M-GMS Global Sum,PRC DELEGATED CO-COMMISSIONING,UPPERTHORPE MEDICAL CENTRE,20626183,"75,916.18 "
Department of Health,NHS Sheffield CCG,31/01/2018,C&M-GMS MPIG Correction Factor,PRC DELEGATED CO-COMMISSIONING,UPPERTHORPE MEDICAL CENTRE,20626183,"1,988.60 "
Department of Health,NHS Sheffield CCG,31/01/2018,C&M-GMS Prem Notional Rent,PRC DELEGATED CO-COMMISSIONING,UPPERTHORPE MEDICAL CENTRE,20626183,"2,497.83 "
Department of Health,NHS Sheffield CCG,31/01/2018,C&M-GMS Prem Rates,PRC DELEGATED CO-COMMISSIONING,UPPERTHORPE MEDICAL CENTRE,20626183,"2,044.00 "
Department of Health,NHS Sheffield CCG,31/01/2018,C&M-GMS Prem Water Rates,PRC DELEGATED CO-COMMISSIONING,UPPERTHORPE MEDICAL CENTRE,20626183,150.37 
Department of Health,NHS Sheffield CCG,31/01/2018,C&M-GMS Prof Fees Prescribing,PRC DELEGATED CO-COMMISSIONING,UPPERTHORPE MEDICAL CENTRE,20626183,"1,058.12 "
Department of Health,NHS Sheffield CCG,31/01/2018,C&M-GMS QOF Aspiration,PRC DELEGATED CO-COMMISSIONING,UPPERTHORPE MEDICAL CENTRE,20626183,"9,309.14 "
Department of Health,NHS Sheffield CCG,31/01/2018,C&M-PMS Contract Value,PRC DELEGATED CO-COMMISSIONING,UPWELL STREET SURGERY,20369463,"37,326.83 "
Department of Health,NHS Sheffield CCG,31/01/2018,C&M-PMS DES Extended Hours Access,PRC DELEGATED CO-COMMISSIONING,UPWELL STREET SURGERY,20369463,"2,300.90 "
Department of Health,NHS Sheffield CCG,31/01/2018,C&M-PMS DES Learn Dsblty Hlth Chk,PRC DELEGATED CO-COMMISSIONING,UPWELL STREET SURGERY,20369463,420.00 
Department of Health,NHS Sheffield CCG,31/01/2018,C&M-PMS Funding Differential Review,PRC DELEGATED CO-COMMISSIONING,UPWELL STREET SURGERY,20369463,"2,004.50 "
Department of Health,NHS Sheffield CCG,31/01/2018,C&M-PMS Out of Hours Opt Outs,PRC DELEGATED CO-COMMISSIONING,UPWELL STREET SURGERY,20369463,58.80 
Department of Health,NHS Sheffield CCG,31/01/2018,C&M-PMS PCO Other,PRC DELEGATED CO-COMMISSIONING,UPWELL STREET SURGERY,20369463,384.50 
Department of Health,NHS Sheffield CCG,31/01/2018,C&M-PMS Prem Actual Rent,PRC DELEGATED CO-COMMISSIONING,UPWELL STREET SURGERY,20369463,"8,137.50 "
Department of Health,NHS Sheffield CCG,31/01/2018,C&M-PMS Prem Notional Rent,PRC DELEGATED CO-COMMISSIONING,UPWELL STREET SURGERY,20369463,"8,137.50 "
Department of Health,NHS Sheffield CCG,31/01/2018,C&M-PMS Prem Rates,PRC DELEGATED CO-COMMISSIONING,UPWELL STREET SURGERY,20369463,984.00 
Department of Health,NHS Sheffield CCG,31/01/2018,C&M-PMS QOF Aspiration,PRC DELEGATED CO-COMMISSIONING,UPWELL STREET SURGERY,20369463,"4,877.64 "
Department of Health,NHS Sheffield CCG,31/01/2018,C&M-PMS Contract Value,PRC DELEGATED CO-COMMISSIONING,VALLEY MEDICAL CENTRE,20369465,"75,530.55 "
Department of Health,NHS Sheffield CCG,31/01/2018,C&M-PMS Funding Differential Review,PRC DELEGATED CO-COMMISSIONING,VALLEY MEDICAL CENTRE,20369465,271.17 
Department of Health,NHS Sheffield CCG,31/01/2018,C&M-PMS Out of Hours Opt Outs,PRC DELEGATED CO-COMMISSIONING,VALLEY MEDICAL CENTRE,20369465,0.60 
Department of Health,NHS Sheffield CCG,31/01/2018,C&M-PMS Prem Rates,PRC DELEGATED CO-COMMISSIONING,VALLEY MEDICAL CENTRE,20369465,"1,083.00 "
Department of Health,NHS Sheffield CCG,31/01/2018,C&M-PMS QOF Aspiration,PRC DELEGATED CO-COMMISSIONING,VALLEY MEDICAL CENTRE,20369465,"9,125.55 "
Department of Health,NHS Sheffield CCG,31/01/2018,C&M-GMS Cost of Drugs -Prescribing,LOCAL ENHANCED SERVICES,WALKLEY HOUSE MEDICAL CENTRE,20626188,"4,474.12 "
Department of Health,NHS Sheffield CCG,31/01/2018,C&M-GMS Global Sum,PRC DELEGATED CO-COMMISSIONING,WALKLEY HOUSE MEDICAL CENTRE,20626188,"78,588.79 "
Department of Health,NHS Sheffield CCG,31/01/2018,C&M-GMS Prem Notional Rent,PRC DELEGATED CO-COMMISSIONING,WALKLEY HOUSE MEDICAL CENTRE,20626188,"5,635.51 "
Department of Health,NHS Sheffield CCG,31/01/2018,C&M-GMS Prof Fees Prescribing,PRC DELEGATED CO-COMMISSIONING,WALKLEY HOUSE MEDICAL CENTRE,20626188,"1,241.46 "
Department of Health,NHS Sheffield CCG,31/01/2018,C&M-GMS QOF Aspiration,PRC DELEGATED CO-COMMISSIONING,WALKLEY HOUSE MEDICAL CENTRE,20626188,"8,922.54 "
Department of Health,NHS Sheffield CCG,31/01/2018,C&M-GMS Cost of Drugs -Prescribing,LOCAL ENHANCED SERVICES,WHITE HOUSE SURGERY SHEFFIELD,20626186,654.46 
Department of Health,NHS Sheffield CCG,31/01/2018,C&M-GMS Global Sum,PRC DELEGATED CO-COMMISSIONING,WHITE HOUSE SURGERY SHEFFIELD,20626186,"47,016.79 "
Department of Health,NHS Sheffield CCG,31/01/2018,C&M-GMS MPIG Correction Factor,PRC DELEGATED CO-COMMISSIONING,WHITE HOUSE SURGERY SHEFFIELD,20626186,"2,086.94 "
Department of Health,NHS Sheffield CCG,31/01/2018,C&M-GMS PCO Locum Adop/Pat/Mat,PRC DELEGATED CO-COMMISSIONING,WHITE HOUSE SURGERY SHEFFIELD,20626186,"16,802.14 "
Department of Health,NHS Sheffield CCG,31/01/2018,C&M-GMS Prem Notional Rent,PRC DELEGATED CO-COMMISSIONING,WHITE HOUSE SURGERY SHEFFIELD,20626186,"9,104.17 "
Department of Health,NHS Sheffield CCG,31/01/2018,C&M-GMS Prem Rates,PRC DELEGATED CO-COMMISSIONING,WHITE HOUSE SURGERY SHEFFIELD,20626186,"2,013.00 "
Department of Health,NHS Sheffield CCG,31/01/2018,C&M-GMS Prof Fees Prescribing,PRC DELEGATED CO-COMMISSIONING,WHITE HOUSE SURGERY SHEFFIELD,20626186,201.02 
Department of Health,NHS Sheffield CCG,31/01/2018,C&M-GMS QOF Aspiration,PRC DELEGATED CO-COMMISSIONING,WHITE HOUSE SURGERY SHEFFIELD,20626186,"6,083.99 "
Department of Health,NHS Sheffield CCG,31/01/2018,Cont Care-Physical Disab (<65),CHC ADULT FULLY FUNDED,WILLOWBECK HEALTH CARE LTD,20426091,"153,196.26 "
Department of Health,NHS Sheffield CCG,31/01/2018,C&M-PMS Contract Value,PRC DELEGATED CO-COMMISSIONING,WINCOBANK MEDICAL CENTRE,20369471,"59,620.95 "
Department of Health,NHS Sheffield CCG,31/01/2018,C&M-PMS DES Extended Hours Access,PRC DELEGATED CO-COMMISSIONING,WINCOBANK MEDICAL CENTRE,20369471,"3,565.83 "
Department of Health,NHS Sheffield CCG,31/01/2018,C&M-PMS Funding Differential Review,PRC DELEGATED CO-COMMISSIONING,WINCOBANK MEDICAL CENTRE,20369471,9.92 
Department of Health,NHS Sheffield CCG,31/01/2018,C&M-PMS Prem Healthcentre Rent,PRC DELEGATED CO-COMMISSIONING,WINCOBANK MEDICAL CENTRE,20369471,"42,475.13 "
Department of Health,NHS Sheffield CCG,31/01/2018,C&M-PMS QOF Aspiration,PRC DELEGATED CO-COMMISSIONING,WINCOBANK MEDICAL CENTRE,20369471,"6,934.01 "
Department of Health,NHS Sheffield CCG,31/01/2018,C&M-PMS Prem Rates,PRC DELEGATED CO-COMMISSIONING,WINCOBANK MEDICAL CENTRE,20597290,"27,549.22 "
Department of Health,NHS Sheffield CCG,31/01/2018,C&M-PMS Contract Value,PRC DELEGATED CO-COMMISSIONING,WOODHOUSE HEALTH CENTRE,20369467,"96,169.70 "
Department of Health,NHS Sheffield CCG,31/01/2018,C&M-PMS DES Extended Hours Access,PRC DELEGATED CO-COMMISSIONING,WOODHOUSE HEALTH CENTRE,20369467,"5,784.08 "
Department of Health,NHS Sheffield CCG,31/01/2018,C&M-PMS Funding Differential Review,PRC DELEGATED CO-COMMISSIONING,WOODHOUSE HEALTH CENTRE,20369467,"2,776.33 "
Department of Health,NHS Sheffield CCG,31/01/2018,C&M-PMS Out of Hours Opt Outs,PRC DELEGATED CO-COMMISSIONING,WOODHOUSE HEALTH CENTRE,20369467,13.80 
Department of Health,NHS Sheffield CCG,31/01/2018,C&M-PMS PCO Other,PRC DELEGATED CO-COMMISSIONING,WOODHOUSE HEALTH CENTRE,20369467,523.70 
Department of Health,NHS Sheffield CCG,31/01/2018,C&M-PMS Prem Notional Rent,PRC DELEGATED CO-COMMISSIONING,WOODHOUSE HEALTH CENTRE,20369467,"6,338.58 "
Department of Health,NHS Sheffield CCG,31/01/2018,C&M-PMS QOF Aspiration,PRC DELEGATED CO-COMMISSIONING,WOODHOUSE HEALTH CENTRE,20369467,"14,743.27 "
Department of Health,NHS Sheffield CCG,31/01/2018,C&M-PMS Contract Value,PRC DELEGATED CO-COMMISSIONING,WOODSEATS MEDICAL CENTRE,20369469,"67,714.86 "
Department of Health,NHS Sheffield CCG,31/01/2018,C&M-PMS DES Extended Hours Access,PRC DELEGATED CO-COMMISSIONING,WOODSEATS MEDICAL CENTRE,20369469,"4,329.15 "
Department of Health,NHS Sheffield CCG,31/01/2018,C&M-PMS Funding Differential Review,PRC DELEGATED CO-COMMISSIONING,WOODSEATS MEDICAL CENTRE,20369469,397.08 
Department of Health,NHS Sheffield CCG,31/01/2018,C&M-PMS PCO Other,PRC DELEGATED CO-COMMISSIONING,WOODSEATS MEDICAL CENTRE,20369469,452.60 
Department of Health,NHS Sheffield CCG,31/01/2018,C&M-PMS Prem Notional Rent,PRC DELEGATED CO-COMMISSIONING,WOODSEATS MEDICAL CENTRE,20369469,"11,666.42 "
Department of Health,NHS Sheffield CCG,31/01/2018,C&M-PMS QOF Aspiration,PRC DELEGATED CO-COMMISSIONING,WOODSEATS MEDICAL CENTRE,20369469,"8,124.33 "
Department of Health,NHS Sheffield CCG,31/01/2018,Hcare Srv Rec NHS Trust-Contract Baseline,NHS 111,YORKSHIRE AMBULANCE SERVICE NHS TRUST,20290062,"98,607.99 "
Department of Health,NHS Sheffield CCG,31/01/2018,Hcare Srv Rec NHS Trust-Contract Baseline,AMBULANCE SERVICES,YORKSHIRE AMBULANCE SERVICE NHS TRUST,20290064,"1,440,139.00 "
Department of Health,NHS Sheffield CCG,31/01/2018,Hcare Srv Rec NHS Trust-CQUIN,AMBULANCE SERVICES,YORKSHIRE AMBULANCE SERVICE NHS TRUST,20290065,"27,566.00 "
Department of Health,NHS Sheffield CCG,31/01/2018,Hcare Srv Rec NHS Trust-Contract Baseline,PATIENT TRANSPORT,YORKSHIRE AMBULANCE SERVICE NHS TRUST,20290066,"255,744.52 "
Department of Health,NHS Sheffield CCG,31/01/2018,Hcare Srv Rec NHS Trust-Contract Baseline,AMBULANCE SERVICES,YORKSHIRE AMBULANCE SERVICE NHS TRUST,20290082,"123,979.00 "
Department of Health,NHS Sheffield CCG,31/01/2018,Hcare Srv Rec Fdtn Trust-Contract Baseline,AMBULANCE SERVICES,YORKSHIRE AMBULANCE SERVICE NHS TRUST,20383711,"119,336.00 "
